Workbook

Sheet GPM Triad 1980+
AI2: 40% GPMv
D3: 0.4 | G3: 0.6 | AI3: 60% Traid++
B4: Month | C4: GPM | D4: GPMv | E4: Triad | F4: Triad+ | G4: Triad++ | H4: GPMv&Triad+++ | J4: GPM | K4: GPMv | L4: Triad | M4: Triad+ | N4: Triad++ | O4: GPMv&Triad+++ | Q4: 1980+ | R4: GPM | S4: GPMv | T4: Triad | U4: Triad+ | V4: Triad++ | W4: GPMv&Triad+++
AH5: 1980-12-31 | AI5: =VLOOKUP(AH5,B:AE,30,0) -> 0.1440310826
B6: 1979-12-31 | J6: 1000 | K6: 1000 | L6: 1000 | M6: 1000 | N6: 1000 | O6: 1000 | Q6: CAGR | R6: =(J515/J6)^(1/(508.27/12))-1 -> 0.1092304996 | S6: 0.1310161425 | T6: 0.1237468857 | U6: 0.1409718923 | V6: 0.1603997493 | W6: 0.1500176549 | AH6: =EOMONTH(AH5,12) -> 1981-12-31 | AI6: =VLOOKUP(AH6,B:AE,30,0) -> 0.1041689903
B7: 1980-01-31 | C7: 0.009335343523 | D7: 0.06524573328 | E7: 0.08748141171 | F7: 0.08748141171 | G7: 0.08748141171 | H7: =$D$3*D7+$G$3*G7 -> 0.07858714034 | J7: =J6*(1+C7) -> 1009.335344 | K7: 1065.245733 | L7: 1087.481412 | M7: 1087.481412 | N7: 1087.481412 | O7: 1078.58714 | Q7: MaxDD | R7: =drawdown(C7:C515) -> -0.07926830494 | S7: =drawdown(D7:D515) -> -0.08247362771 | T7: =drawdown(E7:E515) -> -0.1547488725 | U7: =drawdown(F7:F515) -> -0.1547488725 | V7: =drawdown(G7:G515) -> -0.1547488725 | W7: =drawdown(H7:H515) -> -0.1188420204 | AE7: =IF(TEXT(B7,"MM")="12",O7/#REF!-1,"") ->  | AH7: =EOMONTH(AH6,12) -> 1982-12-31 | AI7: 0.3744950262
B8: 1980-02-28 | C8: -0.03409779713 | D8: -0.01033720448 | E8: -0.006338885228 | F8: -0.006338885228 | G8: -0.006338885228 | H8: =$D$3*D8+$G$3*G8 -> -0.007938212927 | J8: =J7*(1+C8) -> 974.9192317 | K8: =K7*(1+D8) -> 1054.23407 | L8: =L7*(1+E8) -> 1080.587992 | M8: =M7*(1+F8) -> 1080.587992 | N8: =N7*(1+G8) -> 1080.587992 | O8: 1070.025086 | Q8: Sortino Ratio | R8: =SortinoRatio(C7:C515,0.00066423464362253)*SQRT(12) -> 2.4224121 | S8: =SortinoRatio(D7:D515,0.00066423464362253)*SQRT(12) -> 3.112837063 | T8: =SortinoRatio(E7:E515,0.00066423464362253)*SQRT(12) -> 2.261100694 | U8: =SortinoRatio(F7:F515,0.00066423464362253)*SQRT(12) -> 2.402558632 | V8: =SortinoRatio(G7:G515,0.00066423464362253)*SQRT(12) -> 2.463979487 | W8: =SortinoRatio(H7:H515,0.00066423464362253)*SQRT(12) -> 3.026002814 | AE8: =IF(TEXT(B8,"MM")="12",O8/#REF!-1,"") ->  | AH8: 1983-12-31 | AI8: 0.2662497515
B9: 1980-03-31 | C9: -0.03733522167 | D9: -0.07288990105 | E9: -0.1199344987 | F9: -0.1199344987 | G9: -0.1199344987 | H9: -0.1011166596 | J9: 938.5204061 | K9: 977.3910533 | L9: 950.9882127 | M9: 950.9882127 | N9: 950.9882127 | O9: 961.8277235 | Q9: Standard Deviation | R9: =SQRT(12)*_xlfn.STDEV.S(C7:C515) -> 0.08023726734 | S9: 0.07955676645 | T9: 0.08742064298 | U9: 0.1011032071 | V9: 0.1208136308 | W9: 0.09288589452 | AE9: =IF(TEXT(B9,"MM")="12",O9/#REF!-1,"") ->  | AH9: 1984-12-31 | AI9: 0.1252427884
B10: 1980-04-30 | C10: 0.0673 | D10: 0.0121157344 | E10: 0.05633034671 | F10: 0.05633034671 | G10: 0.05633034671 | H10: 0.03864450179 | J10: 1001.682829 | K10: 989.2328637 | L10: 1004.557708 | M10: 1004.557708 | N10: 1004.557708 | O10: 998.9970767 | Q10: UlcerIndex | R10: =ulcerindex(J6:J515) -> 2.353936805 | S10: =ulcerindex(K6:K515) -> 2.002649319 | T10: =ulcerindex(L6:L515) -> 3.113259036 | U10: =ulcerindex(M6:M515) -> 3.224377905 | V10: =ulcerindex(N6:N515) -> 3.54862493 | W10: =ulcerindex(O6:O515) -> 2.341487834 | AE10: =IF(TEXT(B10,"MM")="12",O10/#REF!-1,"") ->  | AH10: 1985-12-31 | AI10: 0.2983121893
B11: 1980-05-31 | C11: 0.03730802744 | D11: 0.03688181277 | E11: 0.04550171799 | F11: 0.04550171799 | G11: 0.04550171799 | H11: 0.0420537559 | J11: 1039.05364 | K11: 1025.717565 | L11: 1050.26681 | M11: 1050.26681 | N11: 1050.26681 | O11: 1041.008656 | Q11: Ulcer Performance Index | R11: =IFERROR((R6-0.00066423464362253)/(R10/100),0) -> 4.61211468 | S11: 6.508973221 | T11: 3.953498558 | U11: 4.351464431 | V11: 4.501335525 | W11: 6.378569134 | AE11: =IF(TEXT(B11,"MM")="12",O11/#REF!-1,"") ->  | AH11: 1986-12-31 | AI11: 0.3318666194
B12: 1980-06-30 | C12: 0.0864081687 | D12: 0.1022130092 | E12: 0.04608707939 | F12: 0.04608707939 | G12: 0.04608707939 | H12: 0.06853745131 | J12: 1128.836362 | K12: 1130.559244 | L12: 1098.67054 | M12: 1098.67054 | N12: 1098.67054 | O12: 1112.356736 | Q12: Gain to Pain | R12: =SUM(C7:C515)/ABS(SUMIF(C7:C515,"<0",C7:C515)) -> 1.913696212 | S12: 2.530103024 | T12: 1.951910513 | U12: 1.976146221 | V12: 1.987050401 | W12: 2.531205287 | AE12: =IF(TEXT(B12,"MM")="12",O12/#REF!-1,"") ->  | AH12: 1987-12-31 | AI12: 0.1155382369
B13: 1980-07-31 | C13: -0.04096208976 | D13: -0.04096208976 | E13: 0.009677408058 | F13: 0.009677408058 | G13: 0.009677408058 | H13: -0.01057839107 | J13: 1082.596866 | K13: 1084.249175 | L13: 1109.302823 | M13: 1109.302823 | N13: 1109.302823 | O13: 1100.589791 | Q13: Winning Months | R13: =COUNTIF(C7:C515,">=0") -> 347 | S13: 355 | T13: 360 | U13: 355 | V13: 352 | W13: 362 | AE13: =IF(TEXT(B13,"MM")="12",O13/O1-1,"") ->  | AH13: 1988-12-31 | AI13: 0.1311468536
B14: 1980-08-31 | C14: 0.003989211157 | D14: 0.007677821998 | E14: 0.01164017787 | F14: 0.01164017787 | G14: 0.01164017787 | H14: 0.01005523552 | J14: 1086.915573 | K14: 1092.573847 | L14: 1122.215305 | M14: 1122.215305 | N14: 1122.215305 | O14: 1111.656481 | Q14: Average Winning Month | R14: =SUMIF(C7:C515,">=0",C7:C515)/R13 -> 0.01993974076 | S14: 0.02111978151 | T14: 0.02154065634 | U14: 0.0247380219 | V14: 0.02836823364 | W14: 0.02364312126 | AH14: 1989-12-31 | AI14: 0.3656188933
B15: 1980-09-30 | C15: 0.02832034942 | D15: 0.03996121333 | E15: 0.02486350769 | F15: 0.02486350769 | G15: 0.02486350769 | H15: 0.03090258994 | J15: 1117.697402 | K15: 1136.234423 | L15: 1150.117514 | M15: 1150.117514 | N15: 1150.117514 | O15: 1146.009545 | Q15: Losing Months | R15: =COUNTIF(C7:C515,"<0") -> 162 | S15: 154 | T15: 149 | U15: 154 | V15: 157 | W15: 147 | AH15: 1990-12-31 | AI15: -0.01973912364
B16: 1980-10-31 | C16: -0.004024924057 | D16: 0.006323638731 | E16: -8.127374296e-05 | F16: -8.127374296e-05 | G16: -8.127374296e-05 | H16: 0.002480691246 | J16: 1113.198755 | K16: 1143.419559 | L16: 1150.02404 | M16: 1150.02404 | N16: 1150.02404 | O16: 1148.852441 | Q16: Average Losing Month | R16: =SUMIF(C7:C515,"<0",C7:C515)/R15 -> -0.01465850564 | S16: =SUMIF(D9:D517,"<0",D9:D517)/S15 -> -0.01372431715 | T16: =SUMIF(E9:E517,"<0",E9:E517)/T15 -> -0.01758825543 | U16: =SUMIF(F9:F517,"<0",F9:F517)/U15 -> -0.01911984574 | V16: =SUMIF(G9:G517,"<0",G9:G517)/V15 -> -0.02125242399 | W16: =SUMIF(H9:H517,"<0",H9:H517)/W15 -> -0.0164341922 | AH16: 1991-12-31 | AI16: 0.2211600425
B17: 1980-11-30 | C17: -0.007686399529 | D17: -0.006917251606 | E17: 0.02792486725 | F17: 0.02792486725 | G17: 0.02792486725 | H17: 0.01398801971 | J17: 1104.642265 | K17: 1135.510239 | L17: 1182.138308 | M17: 1182.138308 | N17: 1182.138308 | O17: 1164.922612 | Q17: Win to Loss Ratio | R17: =R13/(R13+R15) -> 0.6817288802 | S17: =S13/(S13+S15) -> 0.6974459725 | T17: =T13/(T13+T15) -> 0.7072691552 | U17: 0.6974459725 | V17: 0.6915520629 | W17: =W13/(W13+W15) -> 0.7111984283 | AH17: 1992-12-31 | AI17: 0.1005997943
B18: 1980-12-31 | C18: -0.01254978633 | D18: -0.00797304453 | E18: -0.02457436107 | F18: -0.02457436107 | G18: -0.02457436107 | H18: -0.01793383445 | J18: 1090.77924 | K18: 1126.456765 | L18: 1153.088015 | M18: 1153.088015 | N18: 1153.088015 | O18: 1144.031083 | Q18: Best Month | R18: =MAX(C7:C515) -> 0.1123330605 | S18: 0.1102997266 | T18: 0.1041666667 | U18: 0.1444910053 | V18: 0.1924167014 | W18: 0.1355391235 | AE18: =IF(TEXT(B18,"MM")="12",O18/O6-1,"") -> 0.1440310826 | AH18: 1993-12-31 | AI18: 0.1367834343
B19: 1981-01-31 | C19: -0.007890918188 | D19: 0.002143234222 | E19: -0.00970094288 | F19: -0.00970094288 | G19: -0.00970094288 | H19: -0.004963272039 | J19: 1082.17199 | K19: 1128.871026 | L19: 1141.901974 | M19: 1141.901974 | N19: 1141.901974 | O19: 1138.352945 | Q19: Worst Month | R19: =SMALL(C7:C515,1) -> -0.06912522046 | S19: -0.07288990105 | T19: -0.1452161826 | U19: -0.1452161826 | V19: -0.1452161826 | W19: -0.1120655097 | AE19: =IF(TEXT(B19,"MM")="12",O19/O7-1,"") ->  | AH19: 1994-12-31 | AI19: -0.0163192727
B20: 1981-02-28 | C20: -0.0259 | D20: -1.291338012e-05 | E20: 0.01443890332 | F20: 0.01443890332 | G20: 0.01443890332 | H20: 0.008658176642 | J20: 1054.143736 | K20: 1128.856448 | L20: 1158.389786 | M20: 1158.389786 | N20: 1158.389786 | O20: 1148.209006 | Q20: 2nd Worst | R20: =SMALL(C7:C515,2) -> -0.06513541973 | S20: -0.06649734455 | T20: -0.1199344987 | U20: -0.1199344987 | V20: -0.1199344987 | W20: -0.1011166596 | AH20: 1995-12-31 | AI20: 0.2855877011
B21: 1981-03-31 | C21: 0.0146 | D21: 0.02247638764 | E21: 0.0470736952 | F21: 0.0470736952 | G21: 0.0470736952 | H21: 0.03723477218 | J21: 1069.534234 | K21: 1154.229063 | L21: 1212.919474 | M21: 1212.919474 | N21: 1212.919474 | O21: 1190.962307 | AH21: 1996-12-31 | AI21: 0.1590581276
B22: 1981-04-30 | C22: 0.01522918462 | D22: 0.03256118064 | E22: -0.002572794618 | F22: -0.002572794618 | G22: -0.002572794618 | H22: 0.01148079549 | J22: 1085.822369 | K22: 1191.812124 | L22: 1209.798881 | M22: 1209.798881 | N22: 1209.798881 | O22: 1204.635501 | AH22: 1997-12-31 | AI22: 0.1618469901
B23: 1981-05-31 | C23: 0.036 | D23: 0.0108218316 | E23: 0.01502596712 | F23: 0.01502596712 | G23: 0.01502596712 | H23: 0.01334431291 | J23: 1124.911974 | K23: 1204.709714 | L23: =L22*(1+E23) -> 1227.977279 | M23: =M22*(1+F23) -> 1227.977279 | N23: =N22*(1+G23) -> 1227.977279 | O23: 1220.710534 | AH23: 1998-12-31 | AI23: 0.1509284835
B24: 1981-06-30 | C24: -0.001974607817 | D24: 0.01146241403 | E24: 0.001743941848 | F24: 0.001743941848 | G24: 0.001743941848 | H24: 0.005631330721 | J24: 1122.690714 | K24: 1218.518596 | L24: 1230.1188 | M24: 1230.1188 | N24: 1230.1188 | O24: 1227.584759 | AH24: 1999-12-31 | AI24: 0.1943594032
B25: 1981-07-31 | C25: -0.02007031012 | D25: -0.0135357609 | E25: -0.01029808074 | F25: -0.01029808074 | G25: -0.01029808074 | H25: -0.0115931528 | J25: 1100.157963 | K25: 1202.025019 | L25: 1217.450937 | M25: 1217.450937 | N25: 1217.450937 | O25: 1213.353181 | AH25: 2000-12-31 | AI25: 0.1603820289
B26: 1981-08-31 | C26: -0.0365849065 | D26: -0.003679725384 | E26: -0.03757532535 | F26: -0.03757532535 | G26: -0.03757532535 | H26: -0.02401708536 | J26: 1059.908787 | K26: 1197.601897 | L26: 1171.704822 | M26: 1171.704822 | N26: 1171.704822 | O26: 1184.211975 | AH26: 2001-12-31 | AI26: 0.03935027597
B27: 1981-09-30 | C27: -0.006242197253 | D27: 0.01364092277 | E27: 0.01364092277 | F27: 0.01364092277 | G27: 0.01364092277 | H27: 0.01364092277 | J27: 1053.292627 | K27: 1213.938292 | L27: 1187.687957 | M27: 1187.687957 | N27: 1187.687957 | O27: 1200.365719 | AH27: 2002-12-31 | AI27: 0.0661484003
B28: 1981-10-31 | C28: 0.04522613065 | D28: 0.02744244343 | E28: 0.02744244343 | F28: 0.02744244343 | G28: 0.02744244343 | H28: 0.02744244343 | J28: 1100.928977 | K28: 1247.251725 | L28: 1220.281017 | M28: 1220.281017 | N28: 1220.281017 | O28: 1233.306687 | AH28: 2003-12-31 | AI28: 0.2970554181
B29: 1981-11-30 | C29: 0.1061 | D29: 0.04443017657 | E29: 0.04443017657 | F29: 0.04443017657 | G29: 0.04443017657 | H29: 0.04443017657 | J29: 1217.737542 | K29: 1302.66734 | L29: 1274.498318 | M29: 1274.498318 | N29: 1274.498318 | O29: 1288.102721 | AH29: 2004-12-31 | AI29: 0.15839997
B30: 1981-12-31 | C30: -0.0442900706 | D30: -0.01412942463 | E30: -0.02279711492 | F30: -0.02279711492 | G30: -0.02279711492 | H30: -0.0193300388 | J30: 1163.80386 | K30: 1284.2614 | L30: 1245.443433 | M30: 1245.443433 | N30: 1245.443433 | O30: 1263.203645 | AE30: 0.1041689903 | AH30: 2005-12-31 | AI30: 0.08848665426
B31: 1982-01-31 | C31: -0.0028 | D31: 0.005246450333 | E31: -0.0007427317629 | F31: -0.0007427317629 | G31: -0.0007427317629 | H31: 0.001652941075 | J31: 1160.545209 | K31: 1290.999213 | L31: 1244.518403 | M31: 1244.518403 | N31: 1244.518403 | O31: 1265.291646 | AH31: 2006-12-31 | AI31: 0.1618604058
B32: 2/29/1982 | C32: 0.021 | D32: 0.01216976517 | E32: -0.01116294523 | F32: -0.01116294523 | G32: -0.01116294523 | H32: -0.001829861073 | J32: 1184.916659 | K32: 1306.710371 | L32: 1230.625912 | M32: 1230.625912 | N32: 1230.625912 | O32: 1262.976339 | AH32: 2007-12-31 | AI32: 0.1164443649
B33: 1982-03-31 | C33: 0.0129 | D33: 0.01250679717 | E33: 0.01047943411 | F33: 0.01047943411 | G33: 0.01047943411 | H33: 0.01129037934 | J33: 1200.202083 | K33: 1323.053132 | L33: 1243.522175 | M33: 1243.522175 | N33: 1243.522175 | O33: 1277.23582 | AH33: 2008-12-31 | AI33: 0.04425845178
B34: 1982-04-30 | C34: 0.0268 | D34: 0.01742451367 | E34: 0.02593565578 | F34: 0.02593565578 | G34: 0.02593565578 | H34: 0.02253119893 | J34: 1232.367499 | K34: 1346.10669 | L34: 1275.773738 | M34: 1275.773738 | N34: 1275.773738 | O34: 1306.013475 | AH34: 2009-12-31 | AI34: 0.2993083924
B35: 1982-05-31 | C35: 0.0127 | D35: 0.01431085044 | E35: -0.002797570221 | F35: -0.002797570221 | G35: -0.002797570221 | H35: 0.004045798043 | J35: 1248.018567 | K35: 1365.370621 | L35: 1272.204672 | M35: 1272.204672 | N35: 1272.204672 | O35: 1311.297342 | AH35: 2010-12-31 | AI35: 0.2411792869
B36: 1982-06-30 | C36: -0.0098 | D36: -0.003006823176 | E36: -0.01373570937 | F36: -0.01373570937 | G36: -0.01373570937 | H36: -0.009444154895 | J36: 1235.787985 | K36: 1361.265193 | L36: 1254.730038 | M36: 1254.730038 | N36: 1254.730038 | O36: 1298.913246 | AH36: 2011-12-31 | AI36: 0.165572725
B37: 1982-07-31 | C37: 0.0368 | D37: 0.02789699571 | E37: 0.02679392361 | F37: 0.02679392361 | G37: 0.02679392361 | H37: 0.02723515245 | J37: 1281.264982 | K37: 1399.240402 | L37: 1288.349179 | M37: 1288.349179 | N37: 1288.349179 | O37: 1334.289347 | AH37: 2012-12-31 | AI37: 0.07920391823
B38: 1982-08-31 | C38: 0.0532 | D38: 0.03421036641 | E38: 0.02817714297 | F38: 0.02817714297 | G38: 0.02817714297 | H38: 0.03059043234 | J38: 1349.42828 | K38: 1447.108929 | L38: 1324.651178 | M38: 1324.651178 | N38: 1324.651178 | O38: 1375.105835 | AH38: 2013-12-31 | AI38: 0.149124465
B39: 1982-09-30 | C39: 0.02566571749 | D39: 0.0298423633 | E39: 0.01232093406 | F39: 0.01593135679 | G39: 0.01953702791 | H39: 0.02365916207 | J39: 1384.062325 | K39: 1490.29408 | L39: 1340.972118 | M39: 1345.754669 | N39: 1350.530925 | O39: 1407.639686 | AH39: 2014-12-31 | AI39: 0.08458299809
B40: 1982-10-31 | C40: 0.04392552741 | D40: 0.06127373762 | E40: 0.1025248062 | F40: 0.1419282526 | G40: 0.1850493808 | H40: 0.1355391235 | J40: 1444.857992 | K40: 1581.609968 | L40: 1478.455024 | M40: 1536.755277 | N40: 1600.445837 | O40: 1598.429936 | AH40: 2015-12-31 | AI40: -0.039426004
B41: 1982-11-30 | C41: 0.03337878074 | D41: 0.0421116065 | E41: 0.04160312977 | F41: 0.05665671902 | G41: 0.07350879537 | H41: 0.06094991982 | J41: 1493.08559 | K41: 1648.214105 | L41: 1539.963381 | M41: 1623.822789 | N41: 1718.092682 | O41: 1695.854112 | AH41: 2016-12-31 | AI41: 0.07192042474
B42: 1982-12-31 | C42: 0.02531247897 | D42: 0.02361497476 | E42: 0.01512163724 | F42: 0.01921260466 | G42: 0.02397414792 | H42: 0.02383047866 | J42: 1530.879288 | K42: 1687.136639 | L42: 1563.250148 | M42: 1655.020654 | N42: 1759.28249 | O42: 1736.267127 | AE42: 0.3744950262 | AH42: 2017-12-31 | AI42: 0.1368997676
B43: 1983-01-31 | C43: -0.01252668303 | D43: 0.005952751721 | E43: 0.04392746666 | F43: 0.0546408123 | G43: 0.06734206149 | H43: 0.04278633758 | J43: 1511.702448 | K43: 1697.179745 | L43: 1631.919767 | M43: 1745.452327 | N43: 1877.7562 | O43: 1810.555639 | AH43: 2018-12-31 | AI43: 0.01785368526
B44: 1983-02-28 | C44: -0.01837110003 | D44: -0.01837110003 | E44: 0.0003698193946 | F44: 0.01154639631 | G44: 0.02513180117 | H44: 0.007730640689 | J44: 1483.930811 | K44: 1666.000686 | L44: 1632.523283 | M44: 1765.606012 | N44: 1924.947595 | O44: 1824.552394 | AH44: 2019-12-31 | AI44: 0.09783809414
B45: 1983-03-31 | C45: 0.01728800928 | D45: 0.01091413594 | E45: 0.03052462507 | F45: 0.04418537948 | G45: 0.0613419566 | H45: 0.04117082834 | J45: 1509.585021 | K45: 1684.183644 | L45: 1682.355444 | M45: 1843.619983 | N45: 2043.027647 | O45: 1899.670727 | AH45: 2020-12-31 | AI45: 0.2715903778
B46: 1983-04-30 | C46: 0.03464782474 | D46: 0.03918760404 | E46: 0.05171711311 | F46: 0.08367211111 | G46: 0.1262558556 | H46: 0.09142855495 | J46: 1561.888858 | K46: 1750.182765 | L46: 1769.36201 | M46: 1997.879559 | N46: 2300.971851 | O46: 2073.354877 | AH46: 2021-12-31 | AI46: 0.2258180241
B47: 1983-05-31 | C47: 0.01071608119 | D47: 0.02290960986 | E47: 0.0145343885 | F47: 0.01459789415 | G47: 0.01489435019 | H47: 0.01810045406 | J47: 1578.626186 | K47: 1790.27877 | L47: 1795.078605 | M47: 2027.044394 | N47: 2335.243331 | O47: 2110.883542 | AH47: 2022-12-31 | AI47: -0.002684131
B48: 1983-06-30 | C48: 0.01315958825 | D48: 0.006802767 | E48: 0.02049896178 | F48: 0.03931824423 | G48: 0.06410085648 | H48: 0.04118162069 | J48: 1599.400257 | K48: 1802.457619 | L48: 1831.875853 | M48: 2106.74422 | N48: 2484.934429 | O48: 2197.813147
B49: 1983-07-31 | C49: -0.01215422558 | D49: -0.003192041647 | E49: -0.00829136608 | F49: -0.02609461204 | G49: -0.04886017241 | H49: -0.0305929201 | J49: 1579.960785 | K49: 1796.704099 | L49: 1816.6871 | M49: 2051.769547 | N49: 2363.520104 | O49: 2130.575625
B50: 1983-08-31 | C50: -0.01903766961 | D50: -0.0183384051 | E50: 0.008103398483 | F50: 0.01190160205 | G50: 0.01698724099 | H50: 0.002856982556 | J50: 1549.882014 | K50: 1763.755412 | L50: 1831.408439 | M50: 2076.188892 | N50: 2403.66979 | O50: 2136.662642
B51: 1983-09-30 | C51: 0.0234950367 | D51: 0.01411277078 | E51: 0.0178873994 | F51: 0.01713093971 | G51: 0.01641300347 | H51: 0.01549291039 | J51: 1586.296548 | K51: 1788.646888 | L51: 1864.167573 | M51: 2111.755958 | N51: 2443.12123 | O51: 2169.765765
B52: 1983-10-31 | C52: 0.003542857352 | D52: 0.00310982478 | E52: -0.02007734629 | F52: -0.01836444368 | G52: -0.01659438027 | H52: -0.008712698252 | J52: 1591.916571 | K52: 1794.209266 | L52: 1826.740036 | M52: 2072.974735 | N52: 2402.579148 | O52: 2150.861251
B53: 1983-11-30 | C53: 0.00520751084 | D53: 0.003031767116 | E53: 0.01826583902 | F53: 0.01826583902 | G53: 0.01826583902 | H53: 0.01217221026 | J53: 1600.206494 | K53: 1799.648891 | L53: 1860.106975 | M53: 2110.839358 | N53: 2446.464271 | O53: 2177.041986
B54: 1983-12-31 | C54: 0.00799340514 | D54: 0.007697556291 | E54: 0.01133240368 | F54: 0.01133240368 | G54: 0.01133240368 | H54: 0.009878464724 | J54: 1612.997592 | K54: 1813.501789 | L54: 1881.186458 | M54: 2134.760242 | N54: 2474.188592 | O54: 2198.547819 | AE54: 0.2662497515
B55: 1984-01-31 | C55: 0.02244022948 | D55: 0.02158463235 | E55: 0.009605808446 | F55: 0.009605808446 | G55: 0.009605808446 | H55: 0.01439733801 | J55: 1649.193629 | K55: 1852.645559 | L55: 1899.256775 | M55: 2155.26634 | N55: 2497.955174 | O55: 2230.201055
B56: 1984-02-28 | C56: -0.001398350469 | D56: -0.002394741026 | E56: 0.003932055969 | F56: 0.003932055969 | G56: 0.003932055969 | H56: 0.001401337171 | J56: 1646.887478 | K56: 1848.208952 | L56: 1906.724759 | M56: 2163.740967 | N56: 2507.777273 | O56: 2233.326318
B57: 1984-03-31 | C57: -0.0196 | D57: 0.01697791694 | E57: 0.03898392869 | F57: 0.03898392869 | G57: 0.03898392869 | H57: 0.03018152399 | J57: 1614.608483 | K57: 1879.58769 | L57: 1981.056381 | M57: 2248.092091 | N57: 2605.540284 | O57: 2300.73151
B58: 1984-04-30 | C58: -0.0027 | D58: 0.004810904717 | E58: -0.006114104922 | F58: -0.006114104922 | G58: -0.006114104922 | H58: -0.001744101066 | J58: 1610.24904 | K58: 1888.630208 | L58: 1968.943994 | M58: 2234.34702 | N58: 2589.609737 | O58: 2296.718802
B59: 1984-05-31 | C59: -0.057 | D59: -0.005807509864 | E59: -0.03257866333 | F59: -0.03257866333 | G59: -0.03257866333 | H59: -0.02187020194 | J59: 1518.464845 | K59: 1877.661969 | L59: 1904.798431 | M59: 2161.554981 | N59: 2505.243713 | O59: 2246.489098
B60: 1984-06-30 | C60: 0 | D60: 0.005484705253 | E60: 0.0005628744172 | F60: 0.0005628744172 | G60: 0.0005628744172 | H60: 0.002531606751 | J60: 1518.464845 | K60: 1887.960392 | L60: 1905.870593 | M60: 2162.771665 | N60: 2506.653851 | O60: 2252.176325
B61: 1984-07-31 | C61: 0.0529 | D61: 0.01884784248 | E61: 0.004103169862 | F61: 0.004103169862 | G61: 0.004103169862 | H61: 0.01000103891 | J61: 1598.791635 | K61: 1923.544372 | L61: 1913.690704 | M61: 2171.645884 | N61: 2516.939077 | O61: 2274.700428
B62: 1984-08-31 | C62: 0.0165 | D62: 0.0175151267 | E62: 0.0175151267 | F62: 0.0175151267 | G62: 0.0175151267 | H62: 0.0175151267 | J62: 1625.171697 | K62: 1957.235495 | L62: 1947.209239 | M62: 2209.682537 | N62: 2561.023584 | O62: 2314.542094
B63: 1984-09-30 | C63: 0.02757844819 | D63: 0.03036543315 | E63: 0.01119904146 | F63: 0.01119904146 | G63: 0.01119904146 | H63: 0.01886559813 | J63: 1669.991411 | K63: 2016.667799 | L63: 1969.016116 | M63: 2234.428863 | N63: 2589.704594 | O63: 2358.207315
B64: 1984-10-31 | C64: 0.0336 | D64: 0.02824266887 | E64: 0.007134860262 | F64: 0.007134860262 | G64: 0.007134860262 | H64: 0.01557798371 | J64: 1726.103122 | K64: 2073.623879 | L64: 1983.064771 | M64: 2250.371201 | N64: 2608.181774 | O64: 2394.94343
B65: 1984-11-30 | C65: 0.01745450639 | D65: 0.02186513022 | E65: 0.008386609921 | F65: 0.008386609921 | G65: 0.008386609921 | H65: 0.01377801804 | J65: 1756.2314 | K65: 2118.963936 | L65: 1999.695961 | M65: 2269.244187 | N65: 2630.055577 | O65: 2427.941004
B66: 1984-12-31 | C66: 0.01711402227 | D66: 0.01638784091 | E66: 0.02062350315 | F66: 0.02062350315 | G66: 0.02062350315 | H66: 0.01892923825 | J66: 1786.287584 | K66: 2153.689179 | L66: 2040.936697 | M66: 2316.043951 | N66: 2684.296537 | O66: 2473.900078 | AE66: 0.1252427884
B67: 1985-01-31 | C67: 0.0181 | D67: 0.02191719546 | E67: 0.06196702171 | F67: 0.06196702171 | G67: 0.06196702171 | H67: 0.04594709121 | J67: 1818.619389 | K67: 2200.892006 | L67: 2167.407466 | M67: 2459.562297 | N67: 2850.634398 | O67: 2587.56859
B68: 1985-02-28 | C68: -0.01751933762 | D68: -0.01522900643 | E68: 0.002301134737 | F68: 0.002301134737 | G68: 0.002301134737 | H68: -0.004710921732 | J68: 1786.758382 | K68: 2167.374608 | L68: 2172.394963 | M68: 2465.222081 | N68: 2857.194092 | O68: 2575.378757
B69: 1985-03-31 | C69: 0.01794129981 | D69: 0.01578867955 | E69: 0.005643376616 | F69: 0.005643376616 | G69: 0.005643376616 | H69: 0.00970149779 | J69: 1818.81515 | K69: 2201.594591 | L69: 2184.654606 | M69: 2479.134258 | N69: 2873.318315 | O69: 2600.363789
B70: 1985-04-30 | C70: 0.02050516811 | D70: 0.01538816233 | E70: -0.003624439641 | F70: -0.003624439641 | G70: -0.003624439641 | H70: 0.003980601149 | J70: 1856.11026 | K70: 2235.473086 | L70: 2176.736457 | M70: 2470.148785 | N70: 2862.904146 | O70: 2610.7148
B71: 1985-05-31 | C71: 0.04518781963 | D71: 0.0502212026 | E71: 0.04014582838 | F71: 0.04014582838 | G71: 0.04014582838 | H71: 0.04417597807 | J71: 1939.983836 | K71: 2347.741233 | L71: 2264.123345 | M71: 2569.314955 | N71: 2977.837804 | O71: 2726.045679
B72: 1985-06-30 | C72: 0.02183957934 | D72: 0.02407797137 | E72: 0.01801116691 | F72: 0.01801116691 | G72: 0.01801116691 | H72: =$D$3*D72+$G$3*G72 -> 0.0204378887 | J72: =J71*(1+C72) -> 1982.352266 | K72: =K71*(1+D72) -> 2404.270079 | L72: 2304.902849 | M72: 2615.591315 | N72: 3031.472138 | O72: 2781.760298
B73: 1985-07-31 | C73: -0.00700074999 | D73: -0.01315381128 | E73: 0.01885130952 | F73: 0.01885130952 | G73: 0.01885130952 | H73: 0.006049261203 | J73: 1968.474314 | K73: 2372.644764 | L73: 2348.353286 | M73: 2664.898637 | N73: 3088.619358 | O73: 2798.587892
B74: 1985-08-31 | C74: 0.01174624691 | D74: 0.01802616554 | E74: 0.01444556657 | F74: 0.01444556657 | G74: 0.01444556657 | H74: 0.01587780616 | J74: 1991.596499 | K74: 2415.414451 | L74: 2382.276579 | M74: 2703.394607 | N74: 3133.236214 | O74: 2843.023328
B75: 1985-09-30 | C75: 0.01666935012 | D75: 0.01895482827 | E75: 0.002069455429 | F75: 0.002069455429 | G75: 0.002069455429 | H75: 0.008823604565 | J75: 2024.795119 | K75: 2461.198217 | L75: 2387.206595 | M75: 2708.989162 | N75: 3139.720307 | O75: 2868.109042
B76: 1985-10-31 | C76: 0.04505140391 | D76: 0.051755648 | E76: 0.02760963041 | F76: 0.02760963041 | G76: 0.02760963041 | H76: 0.03726803745 | J76: 2116.014981 | K76: 2588.579126 | L76: 2453.116486 | M76: 2783.783351 | N76: 3226.406824 | O76: 2974.997837
B77: 1985-11-30 | C77: 0.03597898493 | D77: 0.03369108395 | E77: 0.04493895112 | F77: 0.04493895112 | G77: 0.04493895112 | H77: 0.04043980426 | J77: 2192.147052 | K77: 2675.791162 | L77: 2563.356968 | M77: 2908.883655 | N77: 3371.398163 | O77: 3095.306167
B78: 1985-12-31 | C78: 0.04620033889 | D78: 0.0480754647 | E78: 0.03072671052 | F78: 0.03072671052 | G78: 0.03072671052 | H78: 0.03766621219 | J78: 2293.424989 | K78: 2804.431066 | L78: 2642.120496 | M78: 2998.264081 | N78: 3474.990138 | O78: 3211.894626 | AE78: 0.2983121893
B79: 1986-01-31 | C79: 0.02316626196 | D79: 0.02443622345 | E79: -0.0006277703721 | F79: -0.0006277703721 | G79: -0.0006277703721 | H79: 0.009397827156 | J79: 2346.555073 | K79: 2872.96077 | L79: 2640.461851 | M79: 2996.38186 | N79: 3472.808642 | O79: 3242.079457
B80: 2/29/1986 | C80: 0.08272619119 | D80: 0.09377751445 | E80: 0.0621094602 | F80: 0.0621094602 | G80: 0.0621094602 | H80: 0.0747766819 | J80: 2540.676637 | K80: 3142.37989 | L80: 2804.459511 | M80: 3182.48552 | N80: 3688.502912 | O80: 3484.511401
B81: 1986-03-31 | C81: 0.1123330605 | D81: 0.1102997266 | E81: 0.07783054927 | F81: 0.07783054927 | G81: 0.07783054927 | H81: 0.09081822019 | J81: 2826.078619 | K81: 3488.983533 | L81: 3022.732135 | M81: 3430.180116 | N81: 3975.58112 | O81: 3800.968525
B82: 1986-04-30 | C82: 0.05394268887 | D82: 0.03297047591 | E82: 0.02393974297 | F82: 0.02393974297 | G82: 0.02393974297 | H82: 0.02755203615 | J82: 2978.524899 | K82: 3604.016981 | L82: 3095.095566 | M82: 3512.297746 | N82: 4070.75551 | O82: 3905.692947
B83: 1986-05-31 | C83: -0.0451598573 | D83: -0.02665536212 | E83: -0.001762081542 | F83: -0.001762081542 | G83: -0.001762081542 | H83: -0.01171939377 | J83: 2844.01514 | K83: 3507.950603 | L83: 3089.641755 | M83: 3506.108791 | N83: 4063.582507 | O83: 3859.920593 | AE83: =IF(TEXT(B83,"MM")="12",O83/O71-1,"") -> 
B84: 1986-06-30 | C84: 0.04758989818 | D84: 0.0518405718 | E84: 0.03444246291 | F84: 0.03444246291 | G84: 0.03444246291 | H84: 0.04140170647 | J84: 2979.36153 | K84: 3689.804768 | L84: 3196.056626 | M84: 3626.867813 | N84: 4203.542297 | O84: 4019.727893
B85: 1986-07-31 | C85: 0.03946255464 | D85: 0.02460058531 | E85: 0.01076237708 | F85: 0.01076237708 | G85: 0.01076237708 | H85: 0.01629766037 | J85: 3096.934748 | K85: 3780.576125 | L85: 3230.453793 | M85: 3665.901532 | N85: 4248.782404 | O85: 4085.240052
B86: 1986-08-31 | C86: 0.0739291072 | D86: 0.07361390779 | E86: 0.08275675571 | F86: 0.08275675571 | G86: 0.08275675571 | H86: 0.07909961654 | J86: 3325.888369 | K86: 4058.879107 | L86: 3497.795668 | M86: 3969.27965 | N86: 4600.397851 | O86: 4408.380974
B87: 1986-09-30 | C87: 0.03325506662 | D87: 0.03422889532 | E87: -0.03599076305 | F87: -0.03599076305 | G87: -0.03599076305 | H87: -0.0079028997 | J87: 3436.491008 | K87: 4197.810055 | L87: =L86*(1+E87) -> 3371.907333 | M87: =M86*(1+F87) -> 3826.422247 | N87: =N86*(1+G87) -> 4434.826022 | O87: 4373.541981
B88: 1986-10-31 | C88: -0.04793967163 | D88: -0.05200065686 | E88: -0.03497697565 | F88: -0.03497697565 | G88: -0.03497697565 | H88: -0.04178644813 | J88: 3271.746757 | K88: 3979.521175 | L88: 3253.968212 | M88: 3692.585569 | N88: 4279.709221 | O88: 4190.787196
B89: 1986-11-30 | C89: 0.02085969545 | D89: 0.01309846985 | E89: 0.00393996453 | F89: 0.00393996453 | G89: 0.00393996453 | H89: 0.007603366656 | J89: 3339.994398 | K89: 4031.646813 | L89: 3266.788732 | M89: 3707.134225 | N89: 4296.571123 | O89: 4222.651288
B90: 1986-12-31 | C90: 0.02130360386 | D90: 0.02142458049 | E90: 0.007489977074 | F90: 0.007489977074 | G90: 0.007489977074 | H90: 0.01306381844 | J90: 3411.148316 | K90: 4118.023155 | L90: 3291.256905 | M90: 3734.900575 | N90: 4328.752342 | O90: 4277.815238 | AE90: 0.3318666194
B91: 1987-01-31 | C91: 0.05957069552 | D91: 0.07866554936 | E91: 0.04613524258 | F91: 0.04613524258 | G91: 0.04613524258 | H91: 0.05914736529 | J91: 3614.352794 | K91: 4441.969709 | L91: 3443.09984 | M91: 3907.211119 | N91: 4528.460382 | O91: 4530.836738
B92: 1987-02-28 | C92: -0.009294836736 | D92: -0.006350542152 | E92: 0.01676773789 | F92: 0.01676773789 | G92: 0.01676773789 | H92: 0.007520425872 | J92: 3580.757974 | K92: 4413.760793 | L92: 3500.832836 | M92: 3972.726211 | N92: 4604.392419 | O92: 4564.91056
B93: 1987-03-31 | C93: 0.05777833256 | D93: 0.06339384016 | E93: 0.04425548287 | F93: 0.04425548287 | G93: 0.04425548287 | H93: 0.05191082579 | J93: 3787.6482 | K93: 4693.566039 | L93: 3655.763883 | M93: 4148.541128 | N93: 4808.162028 | O93: 4801.878837
B94: 1987-04-30 | C94: 0.07056824733 | D94: 0.06726203045 | E94: 0.04066358044 | F94: 0.04066358044 | G94: 0.04066358044 | H94: 0.05130296044 | J94: 4054.935894 | K94: 5009.264821 | L94: 3804.420332 | M94: 4317.235664 | N94: 5003.679112 | O94: 5048.229437
B95: 1987-05-31 | C95: 0.006503473014 | D95: 0.01163434657 | E95: 0.009446334086 | F95: 0.009446334086 | G95: 0.009446334086 | H95: 0.01032153908 | J95: 4081.307061 | K95: 5067.544344 | L95: 3840.358158 | M95: 4358.017714 | N95: 5050.945536 | O95: 5100.334934
B96: 1987-06-30 | C96: -0.002780253993 | D96: -0.009260985895 | E96: 0.01102641797 | F96: 0.01102641797 | G96: 0.01102641797 | H96: 0.002911456424 | J96: 4069.95999 | K96: 5020.613887 | L96: 3882.703552 | M96: 4406.071039 | N96: 5106.639373 | O96: 5115.184337
B97: 1987-07-31 | C97: 0.01126225615 | D97: 0.01802864134 | E97: 0.02483334159 | F97: 0.02483334159 | G97: 0.02483334159 | H97: 0.02211146149 | J97: 4115.796922 | K97: 5111.128734 | L97: 3979.124055 | M97: 4515.488506 | N97: 5233.454293 | O97: 5228.288539
B98: 1987-08-31 | C98: 0.01614412656 | D98: 0.02240709464 | E98: 0.02099584246 | F98: 0.02099584246 | G98: 0.02099584246 | H98: 0.02156034333 | J98: 4182.242869 | K98: 5225.654279 | L98: 4062.669117 | M98: 4610.294992 | N98: 5343.335075 | O98: 5341.012235
B99: 1987-09-30 | C99: 0.0006467399985 | D99: -0.002351174898 | E99: -0.01115216467 | F99: -0.01115216467 | G99: -0.01115216467 | H99: -0.007631768759 | J99: 4184.947692 | K99: 5213.367852 | L99: 4017.361562 | M99: 4558.880223 | N99: 5283.745322 | O99: 5300.250864
B100: 1987-10-31 | C100: -0.06912522046 | D100: -0.06233950039 | E100: -0.1452161826 | F100: -0.1452161826 | G100: -0.1452161826 | H100: -0.1120655097 | J100: 3895.662261 | K100: 4888.369105 | L100: 3433.975652 | M100: 3896.85704 | N100: 4516.459997 | O100: 4706.27555
B101: 1987-11-30 | C101: -0.001 | D101: 0.01664744188 | E101: 0.005807523745 | F101: 0.005807523745 | G101: 0.005807523745 | H101: 0.010143491 | J101: 3891.766598 | K101: 4969.747946 | L101: 3453.918547 | M101: 3919.48813 | N101: 4542.689445 | O101: 4754.013613
B102: 1987-12-31 | C102: 0.0204 | D102: 0.006119324798 | E102: 0.002249437332 | F102: 0.002249437332 | G102: 0.002249437332 | H102: 0.003797392318 | J102: 3971.158637 | K102: 5000.159447 | L102: 3461.687921 | M102: 3928.304773 | N102: 4552.907941 | O102: 4772.066468 | AE102: 0.1155382369
B103: 1988-01-31 | C103: 0.013 | D103: 0.008276578725 | E103: 0.0002866267099 | F103: 0.0002866267099 | G103: 0.0002866267099 | H103: 0.003482607516 | J103: 4022.783699 | K103: 5041.543661 | L103: 3462.680133 | M103: 3929.43073 | N103: 4554.212926 | O103: 4788.685703
B104: 1988-02-28 | C104: 0.009214447858 | D104: 0.01812141522 | E104: 0.007437 | F104: 0.007437 | G104: 0.007437 | H104: 0.01171076609 | J104: 4059.85143 | K104: 5132.903567 | L104: 3488.432085 | M104: 3958.653906 | N104: 4588.082607 | O104: 4844.764881
B105: 1988-03-31 | C105: -0.0123 | D105: 0.02155859747 | E105: 0.02599738243 | F105: 0.02599738243 | G105: 0.02599738243 | H105: 0.02422186845 | J105: 4009.915257 | K105: 5243.561769 | L105: 3579.122188 | M105: 4061.568546 | N105: 4707.360745 | O105: 4962.114138
B106: 1988-04-30 | C106: -0.0069 | D106: 0.003459743141 | E106: 0.01265126306 | F106: 0.0137452869 | G106: 0.01433794202 | H106: 0.009986662468 | J106: 3982.246842 | K106: 5261.703146 | L106: 3624.402604 | M106: 4117.395971 | N106: 4774.854611 | O106: 5011.669097
B107: 1988-05-31 | C107: -0.006971242666 | D107: -0.000892971893 | E107: -0.003363119711 | F107: -0.002676778358 | G107: -0.002118026207 | H107: -0.001628004482 | J107: 3954.485633 | K107: 5257.004592 | L107: 3612.213304 | M107: 4106.374614 | N107: 4764.741343 | O107: 5003.510078
B108: 1988-06-30 | C108: 0.003974487451 | D108: -0.013134025 | E108: 0.03498982167 | F108: 0.0515801168 | G108: 0.06898182035 | H108: 0.03613548221 | J108: 3970.202686 | K108: 5187.958963 | L108: 3738.604004 | M108: 4318.181896 | N108: 5093.421875 | O108: 5184.314327
B109: 1988-07-31 | C109: -0.005846770815 | D109: -0.001610486751 | E109: -0.003247504598 | F109: -0.007219650687 | G109: -0.01134904392 | H109: -0.007453621055 | J109: 3946.989821 | K109: 5179.603824 | L109: 3726.46287 | M109: 4287.006131 | N109: 5035.616406 | O109: 5145.672413
B110: 1988-08-31 | C110: -0.01655987486 | D110: -0.02154976411 | E110: -0.01365472536 | F110: -0.02421339771 | G110: -0.03489254543 | H110: -0.0295554329 | J110: 3881.628164 | K110: 5067.984583 | L110: 3675.579043 | M110: 4183.203147 | N110: 4859.910932 | O110: 4993.589837
B111: 1988-09-30 | C111: 0.029 | D111: 0.01030751798 | E111: 0.01088141684 | F111: 0.01089175419 | G111: 0.01089812799 | H111: 0.01066188399 | J111: 3994.195381 | K111: 5120.222925 | L111: 3715.574551 | M111: 4228.765567 | N111: 4912.874863 | O111: 5046.830912
B112: 1988-10-31 | C112: 0.0243 | D112: 0.01394472264 | E112: 0.01353163236 | F112: 0.01968448657 | G112: 0.02596327199 | H112: 0.02115585225 | J112: 4091.254328 | K112: 5191.623014 | L112: 3765.85234 | M112: 4312.006646 | N112: 5040.42917 | O112: 5153.600922
B113: 1988-11-30 | C113: 0.009091666667 | D113: 0.02387584522 | E113: 0.02355146604 | F113: 0.01750142499 | G113: 0.01138397928 | H113: 0.01638072566 | J113: 4128.450649 | K113: 5315.577401 | L113: 3854.543683 | M113: 4387.472907 | N113: 5097.809311 | O113: 5238.020644
B114: 1988-12-31 | C114: 0.02485970603 | D114: 0.02672853616 | E114: 0.02079599485 | F114: 0.02667550253 | G114: 0.03305494043 | H114: 0.03052437872 | J114: 4231.082718 | K114: 5457.655004 | L114: 3934.702754 | M114: 4504.510952 | N114: 5266.317094 | O114: 5397.90797 | AE114: 0.1311468536
B115: 1989-01-31 | C115: 0.01139310322 | D115: 0.01565328912 | E115: 0.03148671159 | F115: 0.05417533755 | G115: 0.07997648326 | H115: 0.0542472056 | J115: 4279.287881 | K115: 5543.085256 | L115: 4058.593604 | M115: 4748.544353 | N115: 5687.498615 | O115: 5690.729394
B116: 1989-02-28 | C116: 0.00588689872 | D116: 0.00669344214 | E116: 0.002338880678 | F116: -0.005738052694 | G116: -0.01454176857 | H116: -0.006047684286 | J116: 4304.479615 | K116: 5580.187576 | L116: 4068.086171 | M116: 4721.296956 | N116: 5604.792326 | O116: 5656.313659
B117: 1989-03-31 | C117: 0.01462505656 | D117: 0.01693781346 | E117: 0.01411889898 | F117: 0.02109144924 | G117: 0.02894661201 | H117: 0.02414309259 | J117: 4367.432873 | K117: 5674.703752 | L117: 4125.523068 | M117: 4820.875951 | N117: 5767.032075 | O117: 5792.874563
B118: 1989-04-30 | C118: 0.03756884825 | D118: 0.04332076673 | E118: 0.0377385933 | F118: 0.05583494224 | G118: 0.07710459945 | H118: 0.06359106636 | J118: 4531.512296 | K118: 5920.53627 | L118: 4281.214506 | M118: 5090.049281 | N118: 6211.696774 | O118: 6161.249634
B119: 1989-05-31 | C119: 0.0227398778 | D119: 0.02505922927 | E119: 0.02670826135 | F119: 0.04272350119 | G119: 0.06210695996 | H119: 0.04728786769 | J119: 4634.558331 | K119: 6068.900346 | L119: 4395.558301 | M119: 5307.514007 | N119: 6597.486376 | O119: 6452.601992
B120: 1989-06-30 | C120: 0.0180145593 | D120: 0.01913468496 | E120: 0.008732870895 | F120: 0.004739425652 | G120: 0.0002359553682 | H120: 0.007795447205 | J120: 4718.047857 | K120: 6185.026842 | L120: 4433.944145 | M120: 5332.668575 | N120: 6599.043089 | O120: 6502.90291
B121: 1989-07-31 | C121: 0.003918215533 | D121: 0.0001866934396 | E121: 0.04725117308 | F121: 0.08193098228 | G121: 0.1265607579 | H121: 0.07601113212 | J121: 4736.534186 | K121: 6186.181546 | L121: 4643.453207 | M121: 5769.57935 | N121: 7434.222983 | O121: 6997.195922
B122: 1989-08-31 | C122: 0.008849955753 | D122: 0.0129599469 | E122: 0.02294111188 | F122: 0.03061492583 | G122: 0.0403415944 | H122: 0.0293889354 | J122: 4778.452304 | K122: 6266.35413 | L122: 4749.979186 | M122: 5946.214594 | N122: 7734.131392 | O122: 7202.836061
B123: 1989-09-30 | C123: 0.02260485238 | D123: 0.02179213821 | E123: 0.004685586044 | F123: 0.002273683066 | G123: -0.000473382754 | H123: 0.008432825633 | J123: 4886.468513 | K123: 6402.911385 | L123: 4772.235623 | M123: 5959.734401 | N123: 7730.470187 | O123: 7263.576322
B124: 1989-10-31 | C124: -0.01610790915 | D124: -0.01772340715 | E124: -0.02605193013 | F124: -0.02448184793 | G124: -0.02271559548 | H124: -0.02071872015 | J124: 4807.757722 | K124: 6289.42998 | L124: 4647.909674 | M124: 5813.82909 | N124: 7554.867954 | O124: 7113.084316
B125: 1989-11-30 | C125: 0.008130665278 | D125: 0.003722759608 | E125: 0.02704563391 | F125: 0.02695370615 | G125: 0.02685378415 | H125: 0.01760137433 | J125: 4846.847991 | K125: 6312.844016 | L125: 4773.615337 | M125: 5970.533331 | N125: 7757.744747 | O125: 7238.284376
B126: 1989-12-31 | C126: 0.019465 | D126: 0.021858 | E126: 0.01609643994 | F126: 0.01609738852 | G126: 0.01609841979 | H126: 0.01840225188 | J126: 4941.191887 | K126: 6450.83016 | L126: 4850.45355 | M126: 6066.643326 | N126: 7882.632178 | O126: 7371.485108 | AE126: 0.3656188933
B127: 1990-01-31 | C127: -0.02012077541 | D127: -0.02084493049 | E127: -0.03755246962 | F127: -0.03755372886 | G127: -0.03755509787 | H127: -0.03087103092 | J127: 4841.771274 | K127: 6316.363054 | L127: 4668.30704 | M127: 5838.818247 | N127: 7586.599155 | O127: 7143.919764
B128: 1990-02-28 | C128: -0.001132155552 | D128: -0.001939934773 | E128: -0.02172359872 | F128: -0.0217258668 | G128: -0.02172833259 | H128: -0.01381297346 | J128: 4836.289636 | K128: 6304.109722 | L128: 4566.894611 | M128: 5711.96486 | N128: 7421.755006 | O128: 7045.24099
B129: 1990-03-31 | C129: -0.003945521174 | D129: -0.01510096366 | E129: 0.006238481716 | F129: 0.006238482424 | G129: 0.006238483193 | H129: -0.002297295548 | J129: 4817.207953 | K129: 6208.91159 | L129: 4595.3851 | M129: 5747.598852 | N129: 7468.0555 | O129: 7029.055989
B130: 1990-04-30 | C130: -0.007700093772 | D130: -0.002924172513 | E130: 0.002601665469 | F130: 0.002601655495 | G130: 0.002601644652 | H130: 0.000391317786 | J130: 4780.115 | K130: 6190.755661 | L130: 4607.340754 | M130: 5762.552124 | N130: 7487.484726 | O130: 7031.806583
B131: 1990-05-31 | C131: 0.0101 | D131: 0.006424785286 | E131: 0.004050761183 | F131: 0.004050752551 | G131: 0.004050743166 | H131: 0.005000360014 | J131: 4828.394162 | K131: 6230.529937 | L131: 4626.003992 | M131: 5785.894797 | N131: 7517.814604 | O131: 7066.968148
B132: 1990-06-30 | C132: 0.01491494753 | D132: 0.006928755337 | E132: -0.005326412184 | F132: -0.005326412184 | G132: -0.005326412184 | H132: -0.0004243451759 | J132: 4900.409407 | K132: 6273.699755 | L132: 4601.363987 | M132: 5755.076736 | N132: 7477.771625 | O132: 7063.969314
B133: 1990-07-31 | C133: 0.009958078109 | D133: 0.01169856916 | E133: -0.007872962059 | F133: -0.007872962059 | G133: -0.007872962059 | H133: -4.434957165e-05 | J133: 4949.208067 | K133: 6347.093065 | L133: 4565.137623 | M133: 5709.767236 | N133: 7418.899412 | O133: 7063.65603
B134: 1990-08-31 | C134: 0.007792101455 | D134: 0.01984037103 | E134: -0.03500043866 | F134: -0.03500043866 | G134: -0.03500043866 | H134: -0.01306411479 | J134: 4987.772798 | K134: 6473.021747 | L134: 4405.355804 | M134: 5509.922878 | N134: 7159.234678 | O134: 6971.375617
B135: 1990-09-30 | C135: 0.022 | D135: 0.004928144553 | E135: 0.04967759008 | F135: 0.04967759008 | G135: 0.04967759008 | H135: 0.03177781187 | J135: 5097.5038 | K135: 6504.921734 | L135: 4624.203264 | M135: 5783.642568 | N135: 7514.888204 | O135: 7192.91068
B136: 1990-10-31 | C136: 0.005 | D136: 0.006856918806 | E136: -0.006923276953 | F136: -0.006923276953 | G136: -0.006923276953 | H136: =$D$3*D136+$G$3*G136 -> -0.001411198649 | J136: =J135*(1+C136) -> 5122.991319 | K136: =K135*(1+D136) -> 6549.525454 | L136: 4592.188624 | M136: 5743.600808 | N136: 7462.860552 | O136: 7182.760054
B137: 1990-11-30 | C137: 0.0069 | D137: 0.008446735531 | E137: -0.005787075333 | F137: -0.005787075333 | G137: -0.005787075333 | H137: -9.355098716e-05 | J137: 5158.339959 | K137: 6604.847563 | L137: 4565.613282 | M137: 5710.362158 | N137: 7419.672416 | O137: 7182.0881
B138: 1990-12-31 | C138: 0.0264 | D138: 0.008361100273 | E138: 0.004611075287 | F138: 0.004611075287 | G138: 0.004611075287 | H138: 0.006111085282 | J138: 5294.520134 | K138: 6660.071356 | L138: 4586.665669 | M138: 5736.693068 | N138: 7453.885084 | O138: 7225.978452 | AE138: -0.01973912364
B139: 1991-01-31 | C139: 0.002 | D139: -0.002497026934 | E139: 0.001855656902 | F139: 0.01656713808 | G139: 0.0316966287 | H139: 0.01801916645 | J139: 5305.109174 | K139: 6643.440978 | L139: 4595.176947 | M139: 5831.733654 | N139: 7690.148112 | O139: 7356.184561
B140: 1991-02-28 | C140: -0.001 | D140: 0.02055701339 | E140: 0.05311889195 | F140: 0.08066352642 | G140: 0.1103879264 | H140: 0.07445556119 | J140: 5299.804065 | K140: 6780.010283 | L140: 4839.267655 | M140: 6302.141855 | N140: 8539.047615 | O140: 7903.893411
B141: 1991-03-31 | C141: 0.04939562916 | D141: 0.007951158606 | E141: 0.02158734469 | F141: 0.03183641301 | G141: 0.04310680181 | H141: 0.02904454453 | J141: 5561.591221 | K141: 6833.919221 | L141: 4943.734593 | M141: 6502.779446 | N141: 8907.138648 | O141: 8133.458395
B142: 1991-04-30 | C142: 0.008292685356 | D142: 0.01651127371 | E142: 0.01215404342 | F142: 0.01022360733 | G142: 0.008416133402 | H142: 0.01165418953 | J142: 5607.711747 | K142: 6946.755931 | L142: 5003.820958 | M142: 6569.26131 | N142: 8982.102315 | O142: 8228.24726
B143: 1991-05-31 | C143: 0.0001633957464 | D143: 0.003546338442 | E143: 0.03338559529 | F143: 0.04922727624 | G143: 0.06758902144 | H143: 0.04197194824 | J143: 5608.628023 | K143: 6971.391479 | L143: 5170.8765 | M143: 6892.648151 | N143: 9589.193821 | O143: 8573.602828
B144: 1991-06-30 | C144: -0.01327171411 | D144: -0.01804837806 | E144: -0.03258152063 | F144: -0.05222546926 | G144: -0.07363497066 | H144: -0.05140033362 | J144: 5534.191916 | K144: 6845.56917 | L144: 5002.40148 | M144: 6532.676367 | N144: 8883.093816 | O144: 8132.916783
B145: 1991-07-31 | C145: 0.01309633333 | D145: 0.01989987928 | E145: 0.03149833899 | F145: 0.05067011085 | G145: 0.07284051598 | H145: 0.0516642613 | J145: 5606.669538 | K145: 6981.79517 | L145: 5159.968818 | M145: 6863.687803 | N145: 9530.142953 | O145: 8553.097921
B146: 1991-08-31 | C146: 0.01452258939 | D146: 0.01836341013 | E146: 0.02365156527 | F146: 0.03313595435 | G146: 0.0441893087 | H146: 0.03385894927 | J146: 5688.092897 | K146: 7110.004738 | L146: 5282.010157 | M146: 7091.122648 | N146: 9951.273382 | O146: 8842.696829
B147: 1991-09-30 | C147: 0.02289033333 | D147: 0.01571591507 | E147: -0.004233886746 | F147: -0.01098124183 | G147: -0.01820194161 | H147: -0.004634798941 | J147: 5818.29524 | K147: 7221.744969 | L147: 5259.646724 | M147: 7013.253316 | N147: 9770.140885 | O147: 8801.712707 | AE147: =IF(TEXT(B147,"MM")="12",O147/O135-1,"") -> 
B148: 1991-10-31 | C148: 0.01748019136 | D148: 0.02538158019 | E148: 0.01871266872 | F148: 0.02401909014 | G148: 0.03056851126 | H148: 0.02849373884 | J148: 5920.000154 | K148: 7405.044268 | L148: 5358.068751 | M148: 7181.705279 | N148: 10068.79955 | O148: 9052.50641
B149: 1991-11-30 | C149: -0.01026989343 | D149: -0.01164988052 | E149: -0.0345102725 | F149: -0.05191687565 | G149: -0.07161471399 | H149: -0.0476287806 | J149: 5859.202383 | K149: 7318.776387 | L149: 5173.160339 | M149: 6808.853579 | N149: 9347.725347 | O149: 8621.346569
B150: 1991-12-31 | C150: 0.02990218807 | D150: 0.03030273509 | E150: 0.0193858563 | F150: 0.01919542052 | G150: 0.01898957658 | H150: 0.02351483999 | J150: 6034.405355 | K150: 7540.555329 | L150: 5273.446482 | M150: 6939.552387 | N150: 9525.234693 | O150: 8824.076154 | AE150: 0.2211600425
B151: 1992-01-31 | C151: 0.02552314041 | D151: 0.03340392552 | E151: -0.002720371434 | F151: -0.002720371434 | G151: -0.002720371434 | H151: 0.01172934735 | J151: 6188.42233 | K151: 7792.439477 | L151: =L150*(1+E151) -> 5259.100748 | M151: =M150*(1+F151) -> 6920.674227 | N151: =N150*(1+G151) -> 9499.322516 | O151: 8927.576808
B152: 1992-02-29 | C152: 0.01094453093 | D152: 0.01379905325 | E152: 0.01750149574 | F152: 0.01750149574 | G152: 0.01750149574 | H152: 0.01602051874 | J152: 6256.15171 | K152: 7899.967765 | L152: 5351.142878 | M152: 7041.796378 | N152: 9665.574869 | O152: 9070.60122
B153: 1992-03-31 | C153: -0.0006075326354 | D153: -0.005077066246 | E153: -0.01269117487 | F153: -0.01269117487 | G153: -0.01269117487 | H153: -0.00964553142 | J153: 6252.350893 | K153: 7859.859105 | L153: 5283.230588 | M153: 6952.427708 | N153: 9542.907368 | O153: 8983.11045
B154: 1992-04-30 | C154: -0.002374522149 | D154: -0.002834524619 | E154: 0.0199293942 | F154: 0.0199293942 | G154: 0.0199293942 | H154: 0.01082382667 | J154: 6237.504548 | K154: 7837.580141 | L154: 5388.522173 | M154: 7090.985381 | N154: 9733.091731 | O154: 9080.342081
B155: 1992-05-31 | C155: 0.008139894269 | D155: 0.01066649045 | E155: 0.01153023337 | F155: 0.01153023337 | G155: 0.01153023337 | H155: 0.0111847362 | J155: 6288.277175 | K155: 7921.179615 | L155: 5450.653091 | M155: 7172.746097 | N155: 9845.31655 | O155: 9181.903312
B156: 1992-06-30 | C156: 0.003140599399 | D156: -0.003290917418 | E156: -0.006662356214 | F156: -0.006662356214 | G156: -0.006662356214 | H156: -0.005313780696 | J156: 6308.026135 | K156: 7895.111667 | L156: 5414.338898 | M156: 7124.958707 | N156: 9779.723544 | O156: 9133.112691
B157: 1992-07-31 | C157: 0.010313 | D157: 0.01522166667 | E157: 0.02647618714 | F157: 0.02647618714 | G157: 0.02647618714 | H157: 0.02197437895 | J157: 6373.080808 | K157: 8015.288425 | L157: 5557.689948 | M157: 7313.600448 | N157: 10038.65333 | O157: 9333.80717
B158: 1992-08-31 | C158: 0.009233333333 | D158: 0.0115 | E158: -0.01541479413 | F158: -0.01541479413 | G158: -0.01541479413 | H158: -0.00464887648 | J158: 6431.925588 | K158: 8107.464242 | L158: 5472.019302 | M158: 7200.862802 | N158: 9883.90956 | O158: 9290.415454
B159: 1992-09-30 | C159: 0.02253333333 | D159: 0.01523333333 | E159: 0.00155574926 | F159: 0.00155574926 | G159: 0.00155574926 | H159: 0.00702678289 | J159: 6576.858311 | K159: 8230.967947 | L159: 5480.532392 | M159: 7212.065539 | N159: 9899.286445 | O159: 9355.697186
B160: 1992-10-31 | C160: -0.0168 | D160: -0.01768333333 | E160: 0.003284533989 | F160: 0.003284533989 | G160: 0.003284533989 | H160: -0.00510261294 | J160: 6466.367091 | K160: 8085.416997 | L160: 5498.533387 | M160: 7235.753814 | N160: 9931.800988 | O160: 9307.958685
B161: 1992-11-30 | C161: -0.003906813339 | D161: 0.01197955998 | E161: 0.02560182455 | F161: 0.02560182455 | G161: 0.02560182455 | H161: 0.02015291872 | J161: 6441.104202 | K161: 8182.276735 | L161: 5639.305874 | M161: 7421.002313 | N161: 10186.07321 | O161: 9495.54122
B162: 1992-12-31 | C162: 0.02502515444 | D162: 0.02349407587 | E162: 0.02229109269 | F162: 0.02229109269 | G162: 0.02229109269 | H162: 0.02277228596 | J162: 6602.29383 | K162: 8374.511765 | L162: 5765.012164 | M162: 7586.424564 | N162: 10413.13192 | O162: 9711.7764 | AE162: 0.1005997943
B163: 1993-01-31 | C163: 0.01441622052 | D163: 0.02828757853 | E163: 0.02009217805 | F163: 0.02009217805 | G163: 0.02009217805 | H163: 0.02337033824 | J163: 6697.473953 | K163: 8611.406425 | L163: 5880.843815 | M163: 7738.852357 | N163: 10622.35442 | O163: 9938.743899
B164: 1993-02-28 | C164: 0.001353156591 | D164: 0.009058999794 | E164: 0.01857587637 | F164: 0.01857587637 | G164: 0.01857587637 | H164: 0.01476912574 | J164: 6706.536684 | K164: 8689.417154 | L164: 5990.085642 | M164: 7882.608322 | N164: 10819.67396 | O164: 10085.53046
B165: 1993-03-31 | C165: 0.01322793801 | D165: 0.01461054924 | E165: 0.0242813552 | F165: 0.0242813552 | G165: 0.0242813552 | H165: 0.02041303282 | J165: 6795.250336 | K165: 8816.374311 | L165: 6135.53304 | M165: 8074.008734 | N165: 11082.39031 | O165: 10291.40672
B166: 1993-04-30 | C166: 0.05011519952 | D166: 0.04450728835 | E166: 0.02192240216 | F166: 0.02192240216 | G166: 0.02192240216 | H166: 0.03095635664 | J166: 7135.795662 | K166: 9208.767224 | L166: 6270.038662 | M166: 8251.010401 | N166: 11325.34292 | O166: 10609.99118
B167: 1993-05-31 | C167: 0.006993708339 | D167: 0.007697328923 | E167: 0.02749074987 | F167: 0.02749074987 | G167: 0.02749074987 | H167: 0.01957338149 | J167: 7185.701336 | K167: 9279.650135 | L167: 6442.406727 | M167: 8477.836864 | N167: 11636.68509 | O167: 10817.66458
B168: 1993-06-30 | C168: 0.002282796233 | D168: -0.0008281593868 | E168: 0.0003052449187 | F168: 0.0003052449187 | G168: 0.0003052449187 | H168: -0.0001481168035 | J168: 7202.104828 | K168: 9271.965105 | L168: 6444.373239 | M168: 8480.42468 | N168: 11640.23713 | O168: 10816.06231
B169: 1993-07-31 | C169: 0.02449886329 | D169: 0.0281814624 | E169: 0.0214306023 | F169: 0.0214306023 | G169: 0.0214306023 | H169: 0.02413094634 | J169: 7378.548209 | K169: 9533.262641 | L169: 6582.480039 | M169: 8662.165289 | N169: 11889.69442 | O169: 11077.06412
B170: 1993-08-31 | C170: -0.001877383574 | D170: -0.004898731661 | E170: 0.02040464544 | F170: 0.02040464544 | G170: 0.02040464544 | H170: 0.0102832946 | J170: 7364.695844 | K170: 9486.561746 | L170: 6716.79321 | M170: 8838.9137 | N170: 12132.29942 | O170: 11190.97284
B171: 1993-09-30 | C171: 0.004941084703 | D171: -0.001631366758 | E171: -0.01564485737 | F171: -0.01564485737 | G171: -0.01564485737 | H171: -0.01003946112 | J171: 7401.08543 | K171: 9471.085684 | L171: 6611.709938 | M171: 8700.630156 | N171: 11942.49133 | O171: 11078.6215
B172: 1993-10-31 | C172: 0.01308686734 | D172: 0.01599250324 | E172: 0.01670038603 | F172: 0.01670038603 | G172: 0.01670038603 | H172: 0.01641723291 | J172: 7497.942453 | K172: 9622.552053 | L172: 6722.128047 | M172: 8845.934039 | N172: 12141.93555 | O172: 11260.50181
B173: 1993-11-30 | C173: -0.02006578688 | D173: -0.01000790186 | E173: -0.03919779694 | F173: -0.03919779694 | G173: -0.03919779694 | H173: -0.02752183891 | J173: 7347.490338 | K173: 9526.250496 | L173: 6458.635436 | M173: 8499.192912 | N173: 11665.99842 | O173: 10950.59209
B174: 1993-12-31 | C174: 0.01547637199 | D174: 0.005970556932 | E174: 0.00965579157 | F174: 0.00965579157 | G174: 0.00965579157 | H174: 0.008181697715 | J174: 7461.202832 | K174: 9583.127517 | L174: 6520.998674 | M174: 8581.259348 | N174: 11778.64287 | O174: 11040.18653 | AE174: 0.1367834343
B175: 1994-01-31 | C175: 0.005086165626 | D175: 0.007632707032 | E175: 0.03330174304 | F175: 0.03330174304 | G175: 0.03330174304 | H175: 0.02303412864 | J175: 7499.151745 | K175: 9656.272722 | L175: 6738.159296 | M175: 8867.030242 | N175: 12170.89221 | O175: 11294.48761
B176: 1994-02-28 | C176: -0.01532105344 | D176: -0.01534526413 | E176: -0.01759489033 | F176: -0.01759489033 | G176: -0.01759489033 | H176: -0.01669503985 | J176: 7384.25684 | K176: 9508.094666 | L176: 6619.602122 | M176: 8711.015817 | N176: 11956.74669 | O176: 11105.92568
B177: 1994-03-31 | C177: -0.01667923319 | D177: -0.01122062575 | E177: -0.02753660721 | F177: -0.02753660721 | G177: -0.02753660721 | H177: -0.02101021462 | J177: 7261.093099 | K177: 9401.407895 | L177: 6437.320739 | M177: 8471.143996 | N177: 11627.49846 | O177: 10872.5878
B178: 1994-04-30 | C178: -0.01227442608 | D178: -0.0007943196186 | E178: 0.006451093784 | F178: 0.006451093784 | G178: 0.006451093784 | H178: 0.003552928423 | J178: 7171.967348 | K178: 9393.940172 | L178: 6478.848499 | M178: 8525.79214 | N178: 11702.50854 | O178: 10911.21733
B179: 1994-05-31 | C179: 0.0019 | D179: 0.0032 | E179: 0.001391153988 | F179: 0.001391153988 | G179: 0.001391153988 | H179: 0.002114692393 | J179: 7185.594086 | K179: 9424.00078 | L179: 6487.861575 | M179: 8537.65283 | N179: 11718.78853 | O179: 10934.2912
B180: 1994-06-30 | C180: 0.01531308784 | D180: 0.008835594357 | E180: 0.01133941301 | F180: 0.01133941301 | G180: 0.01133941301 | H180: 0.01033788555 | J180: 7295.62772 | K180: 9507.267428 | L180: 6561.430117 | M180: 8634.464802 | N180: 11851.67272 | O180: 11047.32865
B181: 1994-07-31 | C181: 0.003 | D181: 0.0035 | E181: 0.01031656531 | F181: 0.01031656531 | G181: 0.01031656531 | H181: 0.007589939185 | J181: 7317.514603 | K181: 9540.542864 | L181: 6629.121539 | M181: 8723.542822 | N181: 11973.94127 | O181: 11131.1772
B182: 1994-08-31 | C182: -0.002 | D182: 0.001044751369 | E182: 0.01292789077 | F182: 0.01292789077 | G182: 0.01292789077 | H182: 0.00817463501 | J182: 7302.879573 | K182: 9550.51036 | L182: 6714.822098 | M182: 8836.31983 | N182: 12128.73908 | O182: 11222.17051
B183: 1994-09-30 | C183: -0.0004071586654 | D183: -0.008882231402 | E183: -0.01473363108 | F183: -0.01473363108 | G183: -0.01473363108 | H183: -0.01239307121 | J183: 7299.906143 | K183: 9465.680517 | L183: 6615.888386 | M183: 8706.128754 | N183: 11950.03871 | O183: 11083.09335
B184: 1994-10-31 | C184: -0.006881994788 | D184: 0.0005927482135 | E184: 0.001340767947 | F184: 0.001340767947 | G184: 0.001340767947 | H184: 0.001041560053 | J184: 7249.668227 | K184: 9471.291282 | L184: 6624.758758 | M184: 8717.801652 | N184: 11966.06094 | O184: 11094.63706
B185: 1994-11-30 | C185: -0.01174152055 | D185: -0.01282932747 | E185: -0.03179875268 | F185: -0.03179875268 | G185: -0.03179875268 | H185: -0.0242109826 | J185: 7164.546098 | K185: 9349.780984 | L185: 6414.099692 | M185: 8440.586434 | N185: 11585.55513 | O185: 10826.025
B186: 1994-12-31 | C186: 0.0114 | D186: 0.0047 | E186: 0.0021 | F186: 0.0021 | G186: 0.0021 | H186: 0.00314 | J186: 7246.221924 | K186: 9393.724955 | L186: 6427.569302 | M186: 8458.311665 | N186: 11609.88479 | O186: 10860.01871 | AE186: -0.0163192727
B187: 1995-01-31 | C187: 0.001650289046 | D187: 0.007576351143 | E187: 0.01855004186 | F187: 0.01855004186 | G187: 0.01855004186 | H187: 0.01416056558 | J187: 7258.180284 | K187: 9464.895114 | L187: 6546.800981 | M187: 8615.213701 | N187: 11825.24864 | O187: 11013.80272
B188: 1995-02-28 | C188: 0.0112 | D188: 0.01866726397 | E188: 0.03899121459 | F188: 0.03899121459 | G188: 0.03899121459 | H188: 0.03086163434 | J188: 7339.471904 | K188: 9641.578809 | L188: 6802.068703 | M188: 8951.131347 | N188: 12286.32945 | O188: 11353.70667
B189: 1995-03-31 | C189: 0.01365818712 | D189: 0.006583040916 | E189: 0.0167955108 | F189: 0.0167955108 | G189: 0.0167955108 | H189: 0.01271052285 | J189: 7439.715784 | K189: 9705.049717 | L189: 6916.312921 | M189: 9101.47017 | N189: 12492.68463 | O189: 11498.01822
B190: 1995-04-30 | C190: 0.02203956844 | D190: 0.02203956844 | E190: 0.02352824196 | F190: 0.02352824196 | G190: 0.02352824196 | H190: 0.02293277255 | J190: 7603.68391 | K190: 9918.944825 | L190: 7079.041605 | M190: 9315.611762 | N190: 12786.61553 | O190: 11761.69966
B191: 1995-05-31 | C191: 0.0466016388 | D191: 0.0343016388 | E191: 0.03263832713 | F191: 0.03263832713 | G191: 0.03263832713 | H191: 0.0333036518 | J191: 7958.028041 | K191: 10259.18089 | L191: 7310.089681 | M191: 9619.657746 | N191: 13203.94927 | O191: 12153.40721
B192: 1995-06-30 | C192: 0.01985133415 | D192: 0.02264160098 | E192: 0.01518441036 | F192: 0.01518441036 | G192: 0.01518441036 | H192: 0.01816728661 | J192: 8116.005514 | K192: 10491.46517 | L192: 7421.089083 | M192: 9765.726577 | N192: 13404.44346 | O192: 12374.20164
B193: 1995-07-31 | C193: 0.0164961923 | D193: 0.01802024038 | E193: 0.02209543883 | F193: 0.02209543883 | G193: 0.02209543883 | H193: 0.02046535945 | J193: 8249.888702 | K193: 10680.52389 | L193: 7585.061302 | M193: 9981.504591 | N193: 13700.62052 | O193: 12627.44412
B194: 1995-08-31 | C194: 0.02144616146 | D194: 0.02148647244 | E194: 0.0147785485 | F194: 0.0147785485 | G194: 0.0147785485 | H194: 0.01746171808 | J194: 8426.817147 | K194: 10910.01067 | L194: 7697.157499 | M194: 10129.01674 | N194: 13903.0958 | O194: 12847.94099
B195: 1995-09-30 | C195: 0.01907126338 | D195: 0.03000574589 | E195: 0.02374632299 | F195: 0.02374632299 | G195: 0.02374632299 | H195: 0.02625009215 | J195: 8587.527197 | K195: 11237.37368 | L195: 7879.936687 | M195: 10369.54364 | N195: 14233.24321 | O195: 13185.20063
B196: 1995-10-31 | C196: 0.005275076166 | D196: 0.004312614249 | E196: -0.00394762911 | F196: -0.00394762911 | G196: -0.00394762911 | H196: -0.0006435317665 | J196: 8632.827057 | K196: 11285.83614 | L196: 7848.829619 | M196: 10328.60853 | N196: 14177.05564 | O196: 13176.71553
B197: 1995-11-30 | C197: 0.01362222222 | D197: 0.01556111111 | E197: 0.04086762648 | F197: 0.04086762648 | G197: 0.04086762648 | H197: 0.03074502033 | J197: 8750.425345 | K197: 11461.45629 | L197: 8169.592656 | M197: 10750.71425 | N197: 14756.43826 | O197: 13581.83392
B198: 1995-12-31 | C198: 0.0285 | D198: 0.0285 | E198: 0.02759073462 | F198: 0.02759073462 | G198: 0.02759073462 | H198: 0.02795444077 | J198: 8999.812467 | K198: 11788.10779 | L198: 8394.997719 | M198: 11047.33435 | N198: 15163.57923 | O198: 13961.50649 | AE198: 0.2855877011
B199: 1996-01-31 | C199: 0.006666666667 | D199: 0.006666666667 | E199: 0.01982871504 | F199: 0.01982871504 | G199: 0.01982871504 | H199: 0.01456389569 | J199: 9059.811217 | K199: 11866.69518 | L199: 8561.459737 | M199: 11266.3888 | N199: 15464.25352 | O199: 14164.84042
B200: 1996-02-29 | C200: -0.0305 | D200: -0.009467333333 | E200: 0.01075353813 | F200: 0.01075353813 | G200: 0.01075353813 | H200: =$D$3*D200+$G$3*G200 -> 0.002665189545 | J200: =J199*(1+C200) -> 8783.486975 | K200: =K199*(1+D200) -> 11754.34922 | L200: 8653.525721 | M200: 11387.54234 | N200: 15630.54896 | O200: 14202.5924
B201: 1996-03-31 | C201: 0.01828277377 | D201: 0.02564051658 | E201: 0.02116218149 | F201: 0.02116218149 | G201: 0.02116218149 | H201: 0.02295351553 | J201: 8944.07348 | K201: 12055.73681 | L201: 8836.653203 | M201: 11628.52757 | N201: 15961.32547 | O201: 14528.59183
... 316 more rows

Sheet GPM Triad 2000+
D3: 0.4 | G3: 0.6
B4: Month | C4: GPM | D4: GPMv | E4: Triad | F4: Triad+ | G4: Triad++ | H4: GPMv&Triad+++ | J4: GPM | K4: GPMv | L4: Triad | M4: Triad+ | N4: Triad++ | O4: GPMv&Triad+++ | Q4: 2000+ | R4: GPM | S4: GPMv | T4: Triad | U4: Triad+ | V4: Triad++ | W4: GPMv&Triad+++
B6: 1999-12-31 | J6: 1000 | K6: 1000 | L6: 1000 | M6: 1000 | N6: 1000 | O6: 1000 | Q6: CAGR | R6: =(J275/J6)^(1/(268.27/12))-1 -> 0.08253980126 | S6: 0.1012397122 | T6: 0.1071913325 | U6: 0.1234621704 | V6: 0.1415457678 | W6: 0.1267699328
B7: 2000-01-31 | C7: 0.01351926037 | D7: 0.020543796 | E7: -0.01773152798 | F7: -0.01795791647 | G7: -0.01819206509 | H7: -0.002697720655 | J7: =J6*(1+C7) -> 1013.51926 | K7: =K6*(1+D7) -> 1020.543796 | L7: =L6*(1+E7) -> 982.268472 | M7: =M6*(1+F7) -> 982.0420835 | N7: =N6*(1+G7) -> 981.8079349 | O7: =O6*(1+H7) -> 997.3022793 | Q7: MaxDD | R7: =drawdown(C6:C275) -> -0.06826285147 | S7: =drawdown(D6:D275) -> -0.06649734455 | T7: =drawdown(E6:E275) -> -0.07676767842 | U7: =drawdown(F6:F275) -> -0.09090301394 | V7: =drawdown(G6:G275) -> -0.1193974318 | W7: =drawdown(H6:H275) -> -0.07217580924
B8: 2000-02-29 | C8: 0.020984471 | D8: 0.02685195473 | E8: 0.02345878811 | F8: 0.0237632249 | G8: 0.02411960748 | H8: 0.02521254638 | J8: 1034.787426 | K8: 1047.947392 | L8: 1005.3113 | M8: 1005.37857 | N8: 1005.488757 | O8: 1022.446809 | Q8: Sortino Ratio | R8: =SortinoRatio(C6:C275,0.00066423464362253)*SQRT(12) -> 1.803269016 | S8: =SortinoRatio(D6:D275,0.00066423464362253)*SQRT(12) -> 2.321191327 | T8: =SortinoRatio(E6:E275,0.00066423464362253)*SQRT(12) -> 2.383329185 | U8: =SortinoRatio(F6:F275,0.00066423464362253)*SQRT(12) -> 2.453844918 | V8: =SortinoRatio(G6:G275,0.00066423464362253)*SQRT(12) -> 2.423646257 | W8: =SortinoRatio(H6:H275,0.00066423464362253)*SQRT(12) -> 2.835253933
B9: 2000-03-31 | C9: 0.006277611272 | D9: 0.03860958555 | E9: 0.0361009065 | F9: 0.03616319655 | G9: 0.03622721177 | H9: 0.03718016129 | J9: 1041.283419 | K9: 1088.408206 | L9: 1041.603949 | M9: 1041.736273 | N9: 1041.914811 | O9: 1060.461547 | Q9: Standard Deviation | R9: =SQRT(12)*_xlfn.STDEV.S(C6:C275) -> 0.07441848341 | S9: 0.07715309314 | T9: 0.07869747296 | U9: 0.09515104902 | V9: 0.11690811 | W9: 0.08803310519
B10: 2000-04-30 | C10: -0.06285429904 | D10: -0.06649734455 | E10: -0.03707986428 | F10: -0.037550659 | G10: -0.03807779455 | H10: -0.04944561455 | J10: 975.8342797 | K10: 1016.031951 | L10: 1002.981416 | M10: 1002.61839 | N10: 1002.240993 | O10: 1008.026374 | Q10: UlcerIndex | R10: =ulcerindex(J6:J275) -> 2.42817378 | S10: =ulcerindex(K6:K275) -> 2.290749885 | T10: =ulcerindex(L6:L275) -> 2.361610628 | U10: =ulcerindex(M6:M275) -> 2.669277765 | V10: =ulcerindex(N6:N275) -> 3.219823183 | W10: =ulcerindex(O6:O275) -> 2.10178637
B11: 2000-05-31 | C11: 0.00954379036 | D11: 0.01097140462 | E11: 0.01939836987 | F11: 0.01963117098 | G11: 0.01992369941 | H11: 0.01634278149 | J11: 985.1474375 | K11: 1027.179248 | L11: 1022.437621 | M11: 1022.300963 | N11: 1022.209341 | O11: 1024.500328 | Q11: Ulcer Performance Index | R11: =IFERROR((R6-0.00066423464362253)/(R10/100),0) -> 3.371898967 | S11: 4.390504533 | T11: 4.510781608 | U11: 4.600418036 | V11: 4.375443159 | W11: 5.999929391
B12: 2000-06-30 | C12: 0.028979 | D12: 0.03863166667 | E12: 0.01276951277 | F12: 0.0128837715 | G12: 0.01302727042 | H12: 0.02326902892 | J12: 1013.696025 | K12: 1066.860895 | L12: 1035.493651 | M12: 1035.472055 | N12: 1035.525939 | O12: 1048.339456 | Q12: Gain to Pain | R12: =SUM(C6:C275)/ABS(SUMIF(C6:C275,"<0",C6:C275)) -> 1.396079082 | S12: 1.72355781 | T12: 1.778216557 | U12: 1.787075526 | V12: 1.778285703 | W12: 2.10254087
B13: 2000-07-31 | C13: -0.01306222222 | D13: -0.01675466667 | E13: -0.01335039099 | F13: -0.01354739243 | G13: -0.01379474598 | H13: -0.01497871425 | J13: 1000.454902 | K13: 1048.985996 | L13: 1021.669406 | M13: 1021.444108 | N13: 1021.241121 | O13: 1032.636679 | Q13: Winning Months | R13: =COUNTIF(C6:C275,">=0") -> 175 | S13: 173 | T13: 182 | U13: 179 | V13: 178 | W13: 184
B14: 2000-08-31 | C14: 0.04578277778 | D14: 0.05223933333 | E14: 0.08012580764 | F14: 0.08043230776 | G14: 0.08081732046 | H14: 0.06938612561 | J14: 1046.258507 | K14: 1103.784325 | L14: 1103.531492 | M14: 1103.601215 | N14: 1103.775092 | O14: 1104.287337 | Q14: Average Winning Month | R14: =SUMIF(C6:C275,">=0",C6:C275)/R13 -> 0.01804866301 | S14: 0.02037266992 | T14: 0.02021152053 | U14: 0.0236485696 | V14: 0.02741924902 | W14: 0.02218646815
B15: 2000-09-30 | C15: 0.003058 | D15: 0.003058 | E15: -0.01437439917 | F15: -0.01442747016 | G15: -0.01449409307 | H15: -0.007473255842 | J15: 1049.457965 | K15: 1107.159698 | L15: 1087.66889 | M15: 1087.679042 | N15: 1087.776874 | O15: 1096.034716 | Q15: Losing Months | R15: =COUNTIF(C6:C275,"<0") -> 94 | S15: 96 | T15: 87 | U15: 90 | V15: 91 | W15: 85
B16: 2000-10-31 | C16: 0.001819666667 | D16: -0.003041 | E16: 0.002842892144 | F16: 0.002825557563 | G16: 0.002803793874 | H16: 0.0004658763244 | J16: 1051.367629 | K16: 1103.792825 | L16: 1090.761015 | M16: 1090.752342 | N16: 1090.826776 | O16: 1096.545332 | Q16: Average Losing Month | R16: =SUMIF(C6:C275,"<0",C6:C275)/R15 -> -0.01402342459 | S16: =SUMIF(D6:D277,"<0",D6:D277)/S15 -> -0.01347988604 | T16: =SUMIF(E6:E277,"<0",E6:E277)/T15 -> -0.01521896181 | U16: =SUMIF(F6:F277,"<0",F6:F277)/U15 -> -0.01687588904 | V16: =SUMIF(G6:G277,"<0",G6:G277)/V15 -> -0.0193044424 | W16: =SUMIF(H6:H277,"<0",H6:H277)/W15 -> -0.01547995018
B17: 2000-11-30 | C17: 0.0134 | D17: 0.03000622222 | E17: 0.02578844893 | F17: 0.02595737367 | G17: 0.02616946817 | H17: 0.02770416979 | J17: 1065.455955 | K17: 1136.913478 | L17: 1118.89005 | M17: 1119.065408 | N17: 1119.373132 | O17: 1126.92421 | Q17: Win to Loss Ratio | R17: =R13/(R13+R15) -> 0.6505576208 | S17: =S13/(S13+S15) -> 0.6431226766 | T17: =T13/(T13+T15) -> 0.6765799257 | U17: 0.6654275093 | V17: 0.6617100372 | W17: =W13/(W13+W15) -> 0.6840148699
B18: 2000-12-31 | C18: 0.013 | D18: 0.0239 | E18: 0.03382200167 | F18: 0.0337010168 | G18: 0.03354916992 | H18: 0.02968950195 | J18: 1079.306883 | K18: 1164.08571 | L18: 1156.733151 | M18: 1156.77905 | N18: 1156.927172 | O18: 1160.382029 | Q18: Best Month | R18: =MAX(C6:C275) -> 0.0884 | S18: 0.0884 | T18: 0.1041666667 | U18: 0.1444910053 | V18: 0.1924167014 | W18: 0.1145709601
B19: 2001-01-31 | C19: 0.0113 | D19: 0.008603444444 | E19: -0.007665021105 | F19: -0.007819324559 | G19: -0.008013040389 | H19: -0.001366446456 | J19: 1091.50305 | K19: 1174.100857 | L19: 1147.866767 | M19: 1147.733819 | N19: 1147.656668 | O19: 1158.796429 | Q19: Worst Month | R19: =SMALL(C6:C275,1) -> -0.06513541973 | S19: -0.06649734455 | T19: -0.05927834254 | U19: -0.08050494743 | V19: -0.1062106946 | W19: -0.05641163155
B20: 2001-02-28 | C20: 0.0115 | D20: 0.007342222222 | E20: 0.001006559182 | F20: 0.0009467847732 | G20: 0.0008717163853 | H20: 0.00345991872 | J20: 1104.055335 | K20: 1182.721366 | L20: 1149.022163 | M20: 1148.820476 | N20: 1148.657099 | O20: 1162.80577 | Q20: 2nd Worst | R20: =SMALL(C6:C275,2) -> -0.063184 | S20: -0.05870035412 | T20: -0.05763483758 | U20: -0.05763483758 | V20: -0.06338774317 | W20: -0.04944561455
B21: 2001-03-31 | C21: 0.0047 | D21: 0.004044444444 | E21: -0.006090921846 | F21: -0.006088853936 | G21: -0.006086256577 | H21: -0.002033976169 | J21: 1109.244396 | K21: 1187.504817 | L21: 1142.023559 | M21: 1141.825476 | N21: 1141.666077 | O21: 1160.440651
B22: 2001-04-30 | C22: -0.0094 | D22: -0.009938888889 | E22: 0.01049317035 | F22: 0.0104890051 | G22: 0.01048377345 | H22: 0.002314708515 | J22: 1098.817498 | K22: 1175.702338 | L22: 1154.007006 | M22: 1153.802089 | N22: 1153.635045 | O22: 1163.126733
B23: 2001-05-31 | C23: 0.0118 | D23: 0.0022 | E23: 0.01271360224 | F23: 0.01271206913 | G23: 0.01271014349 | H23: 0.008506086095 | J23: 1111.783545 | K23: 1178.288884 | L23: 1168.678593 | M23: 1168.469301 | N23: 1168.297912 | O23: 1173.020389
B24: 2001-06-30 | C24: 0.0039 | D24: 0.005905555556 | E24: 0.0002756951326 | F24: 0.0002769585125 | G24: 0.0002785453694 | H24: 0.002529349444 | J24: 1116.119501 | K24: 1185.247334 | L24: 1169.000792 | M24: 1168.792918 | N24: 1168.623336 | O24: 1175.987368
B25: 2001-07-31 | C25: 0.0189 | D25: 0.014 | E25: 0.002793842564 | F25: 0.002795045618 | G25: 0.002796556699 | H25: 0.007277934019 | J25: 1137.214159 | K25: 1201.840797 | L25: 1172.266796 | M25: 1172.059748 | N25: 1171.891458 | O25: 1184.546126
B26: 2001-08-31 | C26: 0.0116 | D26: 0.0111 | E26: 0.003553896167 | F26: 0.003555766128 | G26: 0.003558114863 | H26: 0.006574868918 | J26: 1150.405843 | K26: 1215.18123 | L26: 1176.43291 | M26: 1176.227318 | N26: 1176.061182 | O26: 1192.334362
B27: 2001-09-30 | C27: 0.016 | D27: 0.0241 | E27: 0.03246394204 | F27: 0.03246390586 | G27: 0.03246386041 | H27: 0.02911831625 | J27: 1168.812337 | K27: 1244.467097 | L27: 1214.62456 | M27: 1214.412251 | N27: 1214.240668 | O27: 1227.053131
B28: 2001-10-31 | C28: 0.0122 | D28: 0.0222 | E28: 0.009690112072 | F28: 0.009690165752 | G28: 0.009690233176 | H28: 0.01469413991 | J28: 1183.071847 | K28: 1272.094267 | L28: 1226.394408 | M28: 1226.180107 | N28: 1226.006943 | O28: 1245.083621
B29: 2001-11-30 | C29: -0.0191 | D29: -0.0232 | E29: -0.02129689093 | F29: -0.0212968992 | G29: -0.02129690958 | H29: -0.02205814575 | J29: 1160.475175 | K29: 1242.58168 | L29: 1200.27602 | M29: 1200.066273 | N29: 1199.896784 | O29: 1217.619385
B30: 2001-12-31 | C30: -0.0029 | D30: -0.01017777778 | E30: -0.009059920822 | F30: -0.009059931835 | G30: -0.009059945668 | H30: -0.009507078512 | J30: 1157.109797 | K30: 1229.93496 | L30: 1189.401614 | M30: 1189.193754 | N30: 1189.025785 | O30: 1206.043382
B31: 2002-01-31 | C31: 0.0026 | D31: 0.004644444444 | E31: -0.0009571926938 | F31: -0.003175930381 | G31: -0.008807444549 | H31: -0.003426688952 | J31: 1160.118283 | K31: 1235.647324 | L31: 1188.263128 | M31: 1185.416958 | N31: 1178.553506 | O31: 1201.910646
B32: 2002-02-28 | C32: 0.0077 | D32: 0.01382222222 | E32: 0.01094670143 | F32: 0.002062938091 | G32: -0.005494236994 | H32: 0.002232346693 | J32: 1169.051193 | K32: 1252.726716 | L32: 1201.27069 | M32: 1187.8624 | N32: 1172.078254 | O32: 1204.593728
B33: 2002-03-31 | C33: -0.0136 | D33: -0.009405555556 | E33: 0.02944720056 | F33: 0.042042212 | G33: 0.05331203339 | H33: 0.02822499781 | J33: 1153.152097 | K33: 1240.944125 | L33: 1236.644749 | M33: 1237.802762 | N33: 1234.564129 | O33: 1238.593383
B34: 2002-04-30 | C34: 0.013663 | D34: 0.01321733333 | E34: -0.01328589322 | F34: -0.03169371217 | G34: -0.04899035437 | H34: -0.02410727929 | J34: 1168.907614 | K34: 1257.346098 | L34: 1220.214818 | M34: 1198.572198 | N34: 1174.082395 | O34: 1208.734266
B35: 2002-05-31 | C35: 0.0113 | D35: 0.02183333333 | E35: 0.01335016422 | F35: 0.0134833228 | G35: 0.01364035157 | H35: 0.01691754428 | J35: 1182.11627 | K35: 1284.798154 | L35: 1236.504887 | M35: 1214.732934 | N35: 1190.097291 | O35: 1229.183082
B36: 2002-06-30 | C36: 0.009966666667 | D36: 0.01 | E36: -0.01128950545 | F36: -0.01143278818 | G36: -0.01160170905 | H36: -0.002961025433 | J36: 1193.898029 | K36: 1297.646136 | L36: 1222.545358 | M36: 1200.84515 | N36: 1176.290129 | O36: 1225.543439
B37: 2002-07-31 | C37: 0.0183 | D37: 0.02285555556 | E37: 0.01330432758 | F37: 0.01306648848 | G37: 0.01278600334 | H37: 0.01681382423 | J37: 1215.746363 | K37: 1327.304559 | L37: 1238.810502 | M37: 1216.535979 | N37: 1191.330178 | O37: 1246.149511
B38: 2002-08-31 | C38: 0.0252 | D38: 0.02611666667 | E38: 0.03004833333 | F38: 0.03004833333 | G38: 0.03004833333 | H38: 0.02847566667 | J38: 1246.383171 | K38: 1361.96933 | L38: 1276.034693 | M38: 1253.090857 | N38: 1227.127664 | O38: 1281.63445
B39: 2002-09-30 | C39: 0.0385 | D39: 0.03168333333 | E39: 0.03278287296 | F39: 0.03278287296 | G39: 0.03278287296 | H39: 0.03234305711 | J39: 1294.368923 | K39: 1405.121058 | L39: 1317.866776 | M39: 1294.170776 | N39: 1267.356435 | O39: 1323.086426
B40: 2002-10-31 | C40: -0.0125 | D40: -0.007 | E40: -0.01380660237 | F40: -0.01380660237 | G40: -0.01380660237 | H40: -0.01108396142 | J40: 1278.189312 | K40: 1395.28521 | L40: 1299.671513 | M40: 1276.302675 | N40: 1249.858548 | O40: 1308.421387
B41: 2002-11-30 | C41: -0.0209 | D41: -0.0132 | E41: -0.01134808751 | F41: -0.01134808751 | G41: -0.01134808751 | H41: -0.0120888525 | J41: 1251.475155 | K41: 1376.867446 | L41: 1284.922727 | M41: 1261.81908 | N41: 1235.675044 | O41: 1292.604074
B42: 2002-12-31 | C42: 0.0355 | D42: 0.030633 | E42: 0.007014621565 | F42: -0.01091441098 | G42: -0.02916771919 | H42: -0.005247431516 | J42: 1295.902523 | K42: 1419.045026 | L42: 1293.935974 | M42: 1248.047068 | N42: 1199.633222 | O42: 1285.821222
B43: 2003-01-31 | C43: -0.0077 | D43: 6.122222222e-05 | E43: 0.01203699684 | F43: 0.01234401169 | G43: 0.01266822862 | H43: 0.007625426061 | J43: 1285.924074 | K43: 1419.131903 | L43: 1309.511077 | M43: 1263.452976 | N43: 1214.830449 | O43: 1295.626157
B44: 2003-02-28 | C44: 0.022 | D44: 0.02003755556 | E44: 0.02904681472 | F44: 0.02943608363 | G44: 0.02984690707 | H44: 0.02592316647 | J44: 1314.214403 | K44: 1447.567838 | L44: 1347.548203 | M44: 1300.644083 | N44: 1251.089381 | O44: 1329.21289
B45: 2003-03-31 | C45: -0.0038 | D45: -0.010401 | E45: -0.03155736605 | F45: -0.0320743898 | G45: -0.0326196182 | H45: -0.02373217092 | J45: 1309.220389 | K45: 1432.511685 | L45: 1305.023131 | M45: 1258.926718 | N45: 1210.279323 | O45: 1297.667782
B46: 2003-04-30 | C46: 0.0014 | D46: -0.0006817777778 | E46: -0.006166837047 | F46: -0.006392747318 | G46: -0.006631243028 | H46: -0.004251456928 | J46: 1311.053297 | K46: 1431.53503 | L46: 1296.975266 | M46: 1250.878717 | N46: 1202.253667 | O46: 1292.150803
B47: 2003-05-31 | C47: 0.03883333333 | D47: 0.03731666667 | E47: 0.05113333333 | F47: 0.06841072049 | G47: 0.08755664685 | H47: 0.06746065478 | J47: 1361.965867 | K47: 1484.955145 | L47: 1363.293935 | M47: 1336.452232 | N47: 1307.518966 | O47: 1379.320143
B48: 2003-06-30 | C48: -0.007467777778 | D48: -0.007581333333 | E48: 0.007809348132 | F48: 0.01129638999 | G48: 0.01464696376 | H48: 0.005755644924 | J48: 1351.795009 | K48: 1473.697205 | L48: 1373.940372 | M48: 1351.549317 | N48: 1326.670149 | O48: 1387.25902
B49: 2003-07-31 | C49: -0.04768066667 | D49: -0.04768066667 | E49: 0.01348742118 | F49: 0.01935217546 | G49: 0.02559035495 | H49: -0.003718053695 | J49: 1287.340521 | K49: 1403.43034 | L49: 1392.471284 | M49: 1377.704737 | N49: 1360.620109 | O49: 1382.101116
B50: 2003-08-31 | C50: 0.01352779753 | D50: 0.01715141358 | E50: 0.02256219896 | F50: 0.029789011 | G50: 0.03705595886 | H50: 0.02909414075 | J50: 1304.755403 | K50: 1427.501154 | L50: 1423.888498 | M50: 1418.745198 | N50: 1411.039192 | O50: 1422.312161
B51: 2003-09-30 | C51: 0.008825777778 | D51: 0.04121745572 | E51: 0.01555268713 | F51: 0.009149609011 | G51: 0.002997470896 | H51: 0.01828546482 | J51: 1316.270885 | K51: 1486.33912 | L51: 1446.033791 | M51: 1431.726162 | N51: 1415.268741 | O51: 1448.319799
B52: 2003-10-31 | C52: 0.01837806867 | D52: 0.03726326572 | E52: 0.03837554308 | F52: 0.06011286589 | G52: 0.08500865694 | H52: 0.06591050045 | J52: 1340.461401 | K52: 1541.72497 | L52: 1501.526123 | M52: 1517.791325 | N52: 1535.578836 | O52: 1543.779282
B53: 2003-11-30 | C53: -0.0009206777983 | D53: 0.001316826103 | E53: 0.01607812449 | F53: 0.01947525815 | G53: 0.02383408648 | H53: 0.01482718233 | J53: 1339.227268 | K53: 1543.755153 | L53: 1525.667846 | M53: 1547.350703 | N53: 1572.177955 | O53: 1566.669179
B54: 2003-12-31 | C54: 0.02828113681 | D54: 0.02624780348 | E54: 0.05039056594 | F54: 0.06795266417 | G54: 0.09006746628 | H54: 0.06453960116 | J54: 1377.102138 | K54: 1584.275335 | L54: 1602.547113 | M54: 1652.497306 | N54: 1713.78004 | O54: 1667.781383
B55: 2004-01-31 | C55: 0.02711154576 | D55: 0.03049385491 | E55: 0.007699036434 | F55: 0.01416298796 | G55: 0.02285234693 | H55: 0.02590895012 | J55: 1414.437505 | K55: 1632.585997 | L55: 1614.885181 | M55: 1675.901605 | N55: 1752.943936 | O55: 1710.991848
B56: 2004-02-29 | C56: -0.001487496878 | D56: -0.001487496878 | E56: 0.01428938249 | F56: 0.01914738635 | G56: 0.02514051565 | H56: 0.01448931064 | J56: 1412.333534 | K56: 1630.157531 | L56: 1637.960893 | M56: 1707.990741 | N56: 1797.01385 | O56: 1735.78294
B57: 2004-03-31 | C57: 0.007224153901 | D57: 0.007224153901 | E57: 0.00382450998 | F57: -0.003816477072 | G57: -0.01357204219 | H57: -0.005253563752 | J57: 1422.536449 | K57: 1641.93404 | L57: 1644.225291 | M57: 1701.472233 | N57: 1772.624702 | O57: 1726.663894
B58: 2004-04-30 | C58: -0.063184 | D58: -0.05870035412 | E58: -0.01754406773 | F58: -0.02449325027 | G58: -0.03310170861 | H58: -0.04334116682 | J58: 1332.654906 | K58: 1545.55193 | L58: 1615.378891 | M58: 1659.797648 | N58: 1713.947796 | O58: 1651.828266
B59: 2004-05-31 | C59: -0.003235937188 | D59: -0.007369358427 | E59: 0.01251427033 | F59: 0.01260489859 | G59: 0.01272581019 | H59: 0.004687742743 | J59: 1328.342518 | K59: 1534.162204 | L59: 1635.594179 | M59: 1680.719229 | N59: 1735.75917 | O59: 1659.571612
B60: 2004-06-30 | C60: 0.01188203281 | D60: 0.008976247373 | E60: 0.01035231533 | F60: 0.01022567893 | G60: 0.01006232889 | H60: 0.009627896282 | J60: 1344.125928 | K60: 1547.933223 | L60: 1652.526366 | M60: 1697.905724 | N60: 1753.22495 | O60: 1675.549795
B61: 2004-07-31 | C61: -0.00833465426 | D61: -0.003020633583 | E61: -0.007300092088 | F61: -0.007118566461 | G61: -0.006884346818 | H61: -0.005338861524 | J61: 1332.923103 | K61: 1543.257484 | L61: 1640.462771 | M61: 1685.819069 | N61: 1741.155141 | O61: 1666.604267
B62: 2004-08-31 | C62: 0.02284888889 | D62: 0.02175866667 | E62: 0.001658882516 | F62: 0.001531163833 | G62: 0.001366439425 | H62: 0.009523330321 | J62: 1363.378915 | K62: 1576.83671 | L62: 1643.184106 | M62: 1688.400335 | N62: 1743.534324 | O62: 1682.47589
B63: 2004-09-30 | C63: 0.02972844444 | D63: 0.04505933333 | E63: 0.03279441788 | F63: 0.0331190885 | G63: 0.03353795278 | H63: 0.038146505 | J63: 1403.910049 | K63: 1647.88792 | L63: 1697.071373 | M63: 1744.318615 | N63: 1802.008896 | O63: 1746.656465
B64: 2004-10-31 | C64: 0.02829333333 | D64: 0.03749 | E64: 0.02272619535 | F64: 0.02707849103 | G64: 0.03173754355 | H64: 0.03403852613 | J64: 1443.631344 | K64: 1709.667239 | L64: 1735.639348 | M64: 1791.552131 | N64: 1859.200232 | O64: 1806.110077
B65: 2004-11-30 | C65: 0.001889333333 | D65: 0.02177091089 | E65: 0.0260678965 | F65: 0.03953088768 | G65: 0.05443255237 | H65: 0.04136789578 | J65: 1446.358845 | K65: 1746.888252 | L65: 1780.883815 | M65: 1862.373777 | N65: 1960.401246 | O65: 1880.82505
B66: 2004-12-31 | C66: -0.004596888214 | D66: -0.004596888214 | E66: 0.02041325142 | F66: 0.03438477132 | G66: 0.04837525167 | H66: 0.02718639572 | J66: 1439.710095 | K66: 1738.858002 | L66: 1817.237444 | M66: 1926.411073 | N66: 2055.23615 | O66: 1931.957904
B67: 2005-01-31 | C67: -0.01937600781 | D67: -0.01937600781 | E67: -0.01591623098 | F67: -0.02726067128 | G67: -0.03807679326 | H67: -0.03059647908 | J67: 1411.814261 | K67: 1705.165875 | L67: 1788.313873 | M67: 1873.895814 | N67: 1976.979348 | O67: 1872.846795
B68: 2005-02-28 | C68: 0.0320187261 | D68: 0.0320187261 | E68: 0.02687632262 | F68: 0.0349646801 | G68: 0.04336033008 | H68: 0.03882368849 | J68: 1457.018755 | K68: 1759.763115 | L68: 1836.377174 | M68: 1939.415982 | N68: 2062.701825 | O68: 1945.557615
B69: 2005-03-31 | C69: 0.004345924111 | D69: 0.004345924111 | E69: -0.002004409641 | F69: -0.008865843366 | G69: -0.01575835282 | H69: -0.007716642048 | J69: 1463.350848 | K69: 1767.410912 | L69: 1832.696322 | M69: 1922.221423 | N69: 2030.197042 | O69: 1930.544443
B70: 2005-04-30 | C70: -0.01624834503 | D70: -0.02697251754 | E70: -0.02917717218 | F70: -0.03709501495 | G70: -0.04558190483 | H70: -0.03813814991 | J70: 1439.573818 | K70: 1719.73939 | L70: 1779.223426 | M70: 1850.916591 | N70: 1937.656793 | O70: 1856.91705
B71: 2005-05-31 | C71: 0.02375 | D71: 0.0291 | E71: 0.01198183192 | F71: 0.01206500761 | G71: 0.01215569344 | H71: 0.01893341606 | J71: =J70*(1+C71) -> 1473.763697 | K71: =K70*(1+D71) -> 1769.783806 | L71: =L70*(1+E71) -> 1800.541782 | M71: =M70*(1+F71) -> 1873.247914 | N71: =N70*(1+G71) -> 1961.210355 | O71: =O70*(1+H71) -> 1892.074833
B72: 2005-06-30 | C72: 0.01744444444 | D72: 0.02376666667 | E72: 0.01401688007 | F72: 0.01533184678 | G72: 0.01632854227 | H72: 0.01930379203 | J72: 1499.472686 | K72: 1811.845668 | L72: 1825.77976 | M72: 1901.968264 | N72: 1993.234062 | O72: 1928.599052
B73: 2005-07-31 | C73: 0.02028333333 | D73: 0.0287 | E73: 0.03727707105 | F73: 0.04906148728 | G73: 0.06250344936 | H73: 0.04898206962 | J73: 1529.88699 | K73: 1863.845638 | L73: 1893.839482 | M73: 1995.281655 | N73: 2117.818066 | O73: 2023.065825
B74: 2005-08-31 | C74: 0.04675733333 | D74: 0.04675733333 | E74: 0.02096716377 | F74: 0.01722193562 | G74: 0.01317748667 | H74: 0.02660942534 | J74: 1601.420426 | K74: 1950.99409 | L74: 1933.547924 | M74: 2029.644268 | N74: 2145.725585 | O74: 2076.898444
B75: 2005-09-30 | C75: -0.011668 | D75: -0.011668 | E75: 0.006153713495 | F75: 0.007891054503 | G75: 0.0106354241 | H75: 0.001714054457 | J75: 1582.735052 | K75: 1928.229891 | L75: 1945.446424 | M75: 2045.660301 | N75: 2168.546287 | O75: 2080.458361
B76: 2005-10-31 | C76: -0.03771133333 | D76: -0.04361133333 | E76: -0.03843505439 | F76: -0.04346607148 | G76: -0.05060196628 | H76: -0.0478057131 | J76: 1523.048003 | K76: 1844.137215 | L76: 1870.673085 | M76: 1956.743484 | N76: 2058.813581 | O76: 1981.000566
B77: 2005-11-30 | C77: 0.01109333333 | D77: 0.01125277778 | E77: 0.01863292729 | F77: 0.03024566122 | G77: 0.043667544 | H77: 0.03070163751 | J77: 1539.943682 | K77: 1864.888881 | L77: 1905.529201 | M77: 2015.926485 | N77: 2148.716913 | O77: 2041.820527
B78: 2005-12-31 | C78: 0.03413888889 | D78: 0.03863333333 | E78: 0.02389891842 | F78: 0.02411886 | G78: 0.02410996677 | H78: 0.02991931339 | J78: 1592.515649 | K78: 1936.935755 | L78: 1951.069288 | M78: 2064.548334 | N78: 2200.522407 | O78: 2102.910395
B79: 2006-01-31 | C79: 0.06271133333 | D79: 0.065378 | E79: 0.05112438709 | F79: 0.06102468842 | G79: 0.0709055251 | H79: 0.06869451506 | J79: 1692.384428 | K79: 2063.56874 | L79: 2050.816509 | M79: 2190.536752 | N79: 2356.551603 | O79: 2247.368805
B80: 2006-02-28 | C80: -0.0068 | D80: -0.0081 | E80: -0.00244725104 | F80: -0.003778433669 | G80: -0.0034866024 | H80: -0.00533196144 | J80: 1680.876214 | K80: 2046.853834 | L80: 2045.797646 | M80: 2182.259954 | N80: 2348.335245 | O80: 2235.385921
B81: 2006-03-31 | C81: 0.04083888889 | D81: 0.04586666667 | E81: 0.02405368248 | F81: 0.02748290961 | G81: 0.03232277619 | H81: 0.03774033238 | J81: 1749.521331 | K81: 2140.736196 | L81: 2095.006613 | M81: 2242.234808 | N81: 2424.239959 | O81: 2319.750129
B82: 2006-04-30 | C82: 0.01803333333 | D82: 0.02645555556 | E82: 0.04105470131 | F82: 0.04469303937 | G82: 0.04835792748 | H82: 0.03959697871 | J82: 1781.071032 | K82: 2197.370562 | L82: 2181.016484 | M82: 2342.447096 | N82: 2541.47118 | O82: 2411.605225
B83: 2006-05-31 | C83: -0.0157 | D83: -0.02183333333 | E83: -0.02423419412 | F83: -0.03376062529 | G83: -0.04554230508 | H83: -0.03605871638 | J83: 1753.108217 | K83: 2149.394638 | L83: 2128.161307 | M83: 2263.364617 | N83: 2425.726724 | O83: 2324.645837
B84: 2006-06-30 | C84: -0.02026666667 | D84: -0.02125 | E84: -0.01220066801 | F84: -0.01210733079 | G84: -0.0120130732 | H84: -0.01570784392 | J84: 1717.578557 | K84: 2103.720002 | L84: 2102.196318 | M84: 2235.961313 | N84: 2396.586291 | O84: 2288.130663
B85: 2006-07-31 | C85: 0.0137 | D85: 0.01522222222 | E85: 0.007275950556 | F85: 0.007252516983 | G85: 0.007228288497 | H85: 0.01042586199 | J85: 1741.109384 | K85: 2135.743295 | L85: 2117.491794 | M85: 2252.177661 | N85: 2413.909508 | O85: 2311.986397
B86: 2006-08-31 | C86: 0.008066666667 | D86: -0.001433333333 | E86: 0.01089148541 | F86: 0.01091485696 | G86: 0.01093902247 | H86: 0.00599008015 | J86: 1755.154333 | K86: 2132.682063 | L86: 2140.554425 | M86: 2276.759858 | N86: 2440.315319 | O86: 2325.835381
B87: 2006-09-30 | C87: 0.003366666667 | D87: 0.0007333333333 | E87: 0.002317736416 | F87: 0.002366081055 | G87: 0.002416065653 | H87: 0.001742972725 | J87: 1761.063352 | K87: 2134.24603 | L87: 2145.515666 | M87: 2282.146856 | N87: 2446.211281 | O87: 2329.889248
B88: 2006-10-31 | C88: 0.02276111111 | D88: 0.02623333333 | E88: 0.026 | F88: 0.026 | G88: 0.026 | H88: 0.02609333333 | J88: 1801.147111 | K88: 2190.234417 | L88: 2201.299073 | M88: 2341.482674 | N88: 2509.812774 | O88: 2390.683825
B89: 2006-11-30 | C89: 0.0251 | D89: 0.0275 | E89: 0.02163062378 | F89: 0.02163062378 | G89: 0.02163062378 | H89: 0.02397837427 | J89: 1846.355903 | K89: 2250.465864 | L89: 2248.914545 | M89: 2392.130405 | N89: 2564.10159 | O89: 2448.008537
B90: 2006-12-31 | C90: -0.0191 | D90: -0.0191 | E90: 0.009519692854 | F90: 0.009519692854 | G90: 0.009519692854 | H90: -0.001928184288 | J90: 1811.090506 | K90: 2207.481966 | L90: 2270.323521 | M90: 2414.902752 | N90: 2588.511049 | O90: 2443.288325
B91: 2007-01-31 | C91: 0.03864997327 | D91: 0.03864997327 | E91: 0.01299084142 | F91: 0.01299084142 | G91: 0.01299084142 | H91: 0.02325449416 | J91: 1881.089105 | K91: 2292.801085 | L91: 2299.816934 | M91: 2446.274371 | N91: 2622.137986 | O91: 2500.105759
B92: 2007-02-28 | C92: 0.0036 | D92: 0.0002 | E92: 0.001745378344 | F92: 0.001745378344 | G92: 0.001745378344 | H92: 0.001127227006 | J92: 1887.861026 | K92: 2293.259645 | L92: 2303.830985 | M92: 2450.544045 | N92: 2626.714609 | O92: 2502.923946
B93: 2007-03-31 | C93: -0.01533333333 | D93: -0.01533333333 | E93: 0.007522963644 | F93: 0.007522963644 | G93: 0.007522963644 | H93: -0.001619555147 | J93: 1858.913824 | K93: 2258.09633 | L93: 2321.162621 | M93: 2468.979399 | N93: 2646.475287 | O93: 2498.870323
B94: 2007-04-30 | C94: 0.01113333333 | D94: 0.0278 | E94: 0.0340587114 | F94: 0.0340587114 | G94: 0.0340587114 | H94: 0.03155522684 | J94: 1879.609731 | K94: 2320.871408 | L94: 2400.218429 | M94: 2553.069655 | N94: 2736.610825 | O94: 2577.722743
B95: 2007-05-31 | C95: -0.003316666667 | D95: -0.0012 | E95: 0.01597019387 | F95: 0.01597019387 | G95: 0.01597019387 | H95: 0.009102116321 | J95: 1873.375692 | K95: 2318.086363 | L95: 2438.550383 | M95: 2593.842673 | N95: 2780.315031 | O95: 2601.185475
B96: 2007-06-30 | C96: 0.005755555556 | D96: -0.005827777778 | E96: -0.005514715377 | F96: -0.005514715377 | G96: -0.005514715377 | H96: -0.005639940337 | J96: 1884.15801 | K96: 2304.57707 | L96: 2425.102472 | M96: 2579.538369 | N96: 2764.982385 | O96: 2586.514944
B97: 2007-07-31 | C97: 0.001970711815 | D97: -0.002835145822 | E97: -0.00686226889 | F97: -0.00686226889 | G97: -0.00686226889 | H97: -0.005251419663 | J97: 1887.871142 | K97: 2298.043258 | L97: 2408.460766 | M97: 2561.836883 | N97: 2746.008332 | O97: 2572.932068
B98: 2007-08-31 | C98: -0.003455127319 | D98: -0.02061965664 | E98: -0.004373754391 | F98: -0.004373754391 | G98: -0.004373754391 | H98: -0.01087211529 | J98: 1881.348307 | K98: 2250.658395 | L98: 2397.92675 | M98: 2550.632038 | N98: 2733.997966 | O98: 2544.958854
B99: 2007-09-30 | C99: 0.02672222222 | D99: 0.02996588608 | E99: 0.05178193317 | F99: 0.05178193317 | G99: 0.05178193317 | H99: 0.04305551434 | J99: 1931.622115 | K99: 2318.101369 | L99: 2522.096033 | M99: 2682.708695 | N99: 2875.569666 | O99: 2654.533367
B100: 2007-10-31 | C100: 0.07577222222 | D100: 0.05769949568 | E100: 0.03662344327 | F100: 0.03662344327 | G100: 0.03662344327 | H100: 0.04505386424 | J100: 2077.985415 | K100: 2451.854648 | L100: 2614.463874 | M100: 2780.958725 | N100: 2980.882929 | O100: 2774.130353
B101: 2007-11-30 | C101: -0.04166686917 | D101: -0.02916686917 | E101: -0.02613650002 | F101: -0.02613650002 | G101: -0.02613650002 | H101: -0.02734864768 | J101: 1991.402268 | K101: 2380.341725 | L101: 2546.130939 | M101: 2708.274197 | N101: 2902.973082 | O101: 2698.261639
B102: 2007-12-31 | C102: 0.01046666667 | D102: 0.01747777778 | E102: 0.00659066085 | F102: 0.00659066085 | G102: 0.00659066085 | H102: 0.01094550762 | J102: 2012.245612 | K102: 2421.944808 | L102: 2562.911625 | M102: 2726.123514 | N102: 2922.105593 | O102: 2727.795482
B103: 2008-01-31 | C103: 0.03171111111 | D103: 0.02946666667 | E103: 0.0009953012509 | F103: 0.0009953012509 | G103: 0.0009953012509 | H103: 0.01238384742 | J103: 2076.056156 | K103: 2493.311449 | L103: 2565.462494 | M103: 2728.836828 | N103: 2925.013968 | O103: 2761.576085
B104: 2008-02-29 | C104: 0.0124 | D104: 0.01458888889 | E104: 0.02106211509 | F104: 0.02106211509 | G104: 0.02106211509 | H104: 0.01847282461 | J104: 2101.799253 | K104: 2529.686092 | L104: 2619.49656 | M104: 2786.311903 | N104: 2986.620949 | O104: 2812.590196
B105: 2008-03-31 | C105: 0.0134 | D105: 0.0093 | E105: -0.0004217472636 | F105: -0.0004217472636 | G105: -0.0004217472636 | H105: 0.003466951642 | J105: 2129.963362 | K105: 2553.212173 | L105: 2618.391794 | M105: 2785.136784 | N105: 2985.36135 | O105: 2822.34131
B106: 2008-04-30 | C106: -0.0241 | D106: -0.0214 | E106: -0.007766666667 | F106: -0.007766666667 | G106: -0.007766666667 | H106: -0.01322 | J106: 2078.631245 | K106: 2498.573433 | L106: 2598.055618 | M106: 2763.505555 | N106: 2962.175043 | O106: 2785.029958
B107: 2008-05-31 | C107: -0.0178 | D107: -0.001222222222 | E107: 0.001459004938 | F107: 0.001459004938 | G107: 0.001459004938 | H107: 0.0003865140741 | J107: 2041.631609 | K107: 2495.519621 | L107: 2601.846194 | M107: 2767.537523 | N107: 2966.496871 | O107: 2786.106411
B108: 2008-06-30 | C108: 0.03335 | D108: 0.03943333333 | E108: -0.03771083894 | F108: -0.03771083894 | G108: -0.03771083894 | H108: -0.006853170032 | J108: 2109.720023 | K108: 2593.926278 | L108: 2503.728391 | M108: 2663.171361 | N108: 2854.627786 | O108: 2767.012751
B109: 2008-07-31 | C109: 0.0072 | D109: 0.0077 | E109: -0.01727545603 | F109: -0.01727545603 | G109: -0.01727545603 | H109: -0.007285273615 | J109: 2124.910008 | K109: 2613.89951 | L109: 2460.475342 | M109: 2617.163862 | N109: 2805.312789 | O109: 2746.854306
B110: 2008-08-31 | C110: 0.0153 | D110: 0.0098 | E110: -0.008603276532 | F110: -0.008603276532 | G110: -0.008603276532 | H110: -0.001241965919 | J110: 2157.421131 | K110: 2639.515725 | L110: 2439.307192 | M110: 2594.647677 | N110: 2781.177907 | O110: 2743.442806
B111: 2008-09-30 | C111: -0.0014 | D111: 0.0051 | E111: 0.0051 | F111: 0.0051 | G111: 0.0051 | H111: 0.0051 | J111: 2154.400741 | K111: 2652.977255 | L111: 2451.747659 | M111: 2607.88038 | N111: 2795.361915 | O111: 2757.434364
B112: 2008-10-31 | C112: -0.0087 | D112: -0.0136 | E112: -0.0136 | F112: -0.0136 | G112: -0.0136 | H112: -0.0136 | J112: 2135.657455 | K112: 2616.896765 | L112: 2418.40389 | M112: 2572.413207 | N112: 2757.344993 | O112: 2719.933257
B113: 2008-11-30 | C113: 0.011 | D113: 0.0103 | E113: 0.0103 | F113: 0.0103 | G113: 0.0103 | H113: 0.0103 | J113: 2159.149687 | K113: 2643.850801 | L113: 2443.313451 | M113: 2598.909063 | N113: 2785.745646 | O113: 2747.94857
B114: 2008-12-31 | C114: 0.0515 | D114: 0.0366 | E114: 0.0366 | F114: 0.0366 | G114: 0.0366 | H114: 0.0366 | J114: 2270.345896 | K114: 2740.615741 | L114: 2532.738723 | M114: 2694.029135 | N114: 2887.703937 | O114: 2848.523487
B115: 2009-01-31 | C115: -0.0389 | D115: -0.0239 | E115: -0.01038333333 | F115: -0.01038333333 | G115: -0.01038333333 | H115: -0.01579 | J115: 2182.02944 | K115: 2675.115025 | L115: 2506.440452 | M115: 2666.056132 | N115: 2857.719944 | O115: 2803.545301
B116: 2009-02-28 | C116: -0.0074 | D116: -0.0058 | E116: 0.00151780319 | F116: 0.00151780319 | G116: 0.00151780319 | H116: -0.001409318086 | J116: 2165.882422 | K116: 2659.599357 | L116: 2510.244736 | M116: 2670.102681 | N116: 2862.0574 | O116: 2799.594214
B117: 2009-03-31 | C117: 0.0331 | D117: 0.009 | E117: 0.01924502305 | F117: 0.01924502305 | G117: 0.01924502305 | H117: 0.01514701383 | J117: 2237.573131 | K117: 2683.535752 | L117: 2558.554454 | M117: 2721.488869 | N117: 2917.137761 | O117: 2841.999707
B118: 2009-04-30 | C118: -0.0275 | D118: -0.0176 | E118: -0.02085087613 | F118: -0.02085087613 | G118: -0.02085087613 | H118: -0.01955052568 | J118: 2176.039869 | K118: 2636.305522 | L118: 2505.206352 | M118: 2664.743441 | N118: 2856.312883 | O118: 2786.437118
B119: 2009-05-31 | C119: -0.0208 | D119: -0.011 | E119: 0.08820807445 | F119: 0.1059414078 | G119: 0.1174870921 | H119: 0.06609225525 | J119: 2130.77824 | K119: 2607.306162 | L119: 2726.18578 | M119: 2947.050113 | N119: 3191.892778 | O119: 2970.599032
B120: 2009-06-30 | C120: -0.007233333333 | D120: -0.004227777778 | E120: -0.008618417164 | F120: -0.01079633951 | G120: -0.01092657373 | H120: -0.008247055346 | J120: 2115.365611 | K120: 2596.283051 | L120: 2702.690374 | M120: 2915.232759 | N120: 3157.016326 | O120: 2946.100337
B121: 2009-07-31 | C121: 0.0011 | D121: 0.007369058217 | E121: 0.06226039898 | F121: 0.08545876212 | G121: 0.1125394775 | H121: 0.07047130977 | J121: 2117.692513 | K121: 2615.415212 | L121: 2870.960955 | M121: 3164.364942 | N121: 3512.305294 | O121: 3153.715886
B122: 2009-08-31 | C122: 0.01612447409 | D122: 0.01906392595 | E122: 0.02182213255 | F122: 0.03513019371 | G122: 0.04965058686 | H122: 0.03741592249 | J122: 2151.839191 | K122: 2665.275293 | L122: 2933.611445 | M122: 3275.529696 | N122: 3686.693313 | O122: 3271.715076
B123: 2009-09-30 | C123: 0.03111064879 | D123: 0.03685277855 | E123: 0.03327096415 | F123: 0.04536274365 | G123: 0.05941794178 | H123: 0.05039187649 | J123: 2218.784304 | K123: 2763.498094 | L123: 3031.215526 | M123: 3424.116709 | N123: 3905.749041 | O123: 3436.582938
B124: 2009-10-31 | C124: 0.01381576392 | D124: 0.01685891671 | E124: -0.01223886513 | F124: -0.02156124105 | G124: -0.03460411191 | H124: -0.01401890046 | J124: 2249.438505 | K124: 2810.087678 | L124: 2994.116888 | M124: 3350.288504 | N124: 3770.594064 | O124: 3388.405823
B125: 2009-11-30 | C125: 0.06101433827 | D125: 0.06101433827 | E125: 0.03791717061 | F125: 0.06309940188 | G125: 0.09247154714 | H125: 0.07988866359 | J125: 2386.686506 | K125: 2981.543318 | L125: 3107.645329 | M125: 3561.689704 | N125: 4119.266731 | O125: 3659.101036
B126: 2009-12-31 | C126: -0.01261549934 | D126: -0.01261549934 | E126: 0.01248333333 | F126: 0.01906690733 | G126: 0.02754501293 | H126: 0.01148080802 | J126: 2356.577264 | K126: 2943.92966 | L126: 3146.439102 | M126: 3629.600112 | N126: 4232.731987 | O126: 3701.110473
B127: 2010-01-31 | C127: -0.0128346356 | D127: -0.0180432945 | E127: -0.02183189737 | F127: -0.04010032622 | G127: -0.06054780466 | H127: -0.04354600059 | J127: 2326.331454 | K127: 2890.81147 | L127: 3077.746366 | M127: 3484.051963 | N127: 3976.449357 | O127: 3539.941914
B128: 2010-02-28 | C128: 0.01268049957 | D128: 0.0159839578 | E128: 0.03305123637 | F128: 0.04557799244 | G128: 0.0600180949 | H128: 0.04240444006 | J128: 2355.830499 | K128: 2937.018079 | L128: 3179.469689 | M128: 3642.848057 | N128: 4215.108272 | O128: 3690.051169
B129: 2010-03-31 | C129: 0.04679104467 | D129: 0.05668925361 | E129: 0.04713415047 | F129: 0.07397345954 | G129: 0.1076197167 | H129: 0.08724753147 | J129: 2466.062269 | K129: 3103.515442 | L129: 3329.331291 | M129: 3912.322131 | N129: 4668.73703 | O129: 4011.999024
B130: 2010-04-30 | C130: 0.03889720294 | D130: 0.047704837 | E130: 0.03141339905 | F130: 0.03577572808 | G130: 0.04235270341 | H130: 0.04449355685 | J130: 2561.985194 | K130: 3251.56814 | L130: 3433.916904 | M130: 4052.288304 | N130: 4866.470665 | O130: 4190.507131
B131: 2010-05-31 | C131: -0.06513541973 | D131: -0.03006875306 | E131: -0.05025434035 | F131: -0.0495964116 | G131: -0.04877631444 | H131: -0.04129328989 | J131: 2395.109213 | K131: 3153.79754 | L131: 3261.347675 | M131: 3851.309345 | N131: 4629.102161 | O131: 4017.467305
B132: 2010-06-30 | C132: 0.02538634961 | D132: 0.01780603255 | E132: -0.006901898032 | F132: -0.006018034729 | G132: -0.004918025813 | H132: 0.004171597534 | J132: 2455.912293 | K132: 3209.954162 | L132: 3238.838186 | M132: 3828.132032 | N132: 4606.336118 | O132: 4034.226562
B133: 2010-07-31 | C133: 0.00475 | D133: -0.00425 | E133: -0.001436520539 | F133: -0.0011352128 | G133: -0.0007609689414 | H133: -0.002156581365 | J133: 2467.577876 | K133: 3196.311857 | L133: 3234.185528 | M133: 3823.786287 | N133: 4602.830839 | O133: 4025.526424
B134: 2010-08-31 | C134: 0.05013333333 | D134: 0.0584 | E134: 0.01042210137 | F134: 0.01023710749 | G134: 0.01000748838 | H134: 0.02936449303 | J134: 2591.28578 | K134: 3382.976469 | L134: 3267.892538 | M134: 3862.930798 | N134: 4648.893615 | O134: 4143.733967
B135: 2010-09-30 | C135: 0.001227777778 | D135: 0.005483333333 | E135: 0.01089500337 | F135: 0.0106729562 | G135: 0.01039723245 | H135: 0.008431672806 | J135: =J134*(1+C135) -> 2594.467303 | K135: =K134*(1+D135) -> 3401.526457 | L135: =L134*(1+E135) -> 3303.496238 | M135: =M134*(1+F135) -> 3904.15969 | N135: =N134*(1+G135) -> 4697.229242 | O135: =O134*(1+H135) -> 4178.672576
B136: 2010-10-31 | C136: -0.002566666667 | D136: -0.002566666667 | E136: 0.03157235198 | F136: 0.04376509027 | G136: 0.05644901093 | H136: 0.03284273989 | J136: 2587.80817 | K136: 3392.795872 | L136: 3407.795384 | M136: 4075.025591 | N136: 4962.383187 | O136: 4315.911632
B137: 2010-11-30 | C137: -0.001766666667 | D137: -0.001766666667 | E137: -0.009780614901 | F137: -0.01183622035 | G137: -0.01341692704 | H137: -0.00875682289 | J137: 2583.236376 | K137: 3386.801933 | L137: 3374.46505 | M137: 4026.79269 | N137: 4895.803254 | O137: 4278.117958
B138: 2010-12-31 | C138: 0.002682170751 | D138: 0.0100786049 | E138: 0.06335 | F138: 0.08897497435 | G138: 0.1162414243 | H138: 0.07377629653 | J138: 2590.165057 | K138: 3420.936172 | L138: 3588.237411 | M138: 4385.076466 | N138: 5464.898397 | O138: 4593.741657
B139: 2011-01-31 | C139: -0.007992642782 | D139: 0.001448828662 | E139: 0.02230935409 | F139: 0.02984453623 | G139: 0.03898545162 | H139: 0.02397080244 | J139: 2569.462793 | K139: 3425.892522 | L139: 3668.28867 | M139: 4515.94704 | N139: 5677.94993 | O139: 4703.857331
B140: 2011-02-28 | C140: 0.0359139124 | D140: 0.04333669488 | E140: 0.03116597379 | F140: 0.04425311259 | G140: 0.05910353665 | H140: 0.05279679994 | J140: 2661.742255 | K140: 3574.359381 | L140: 3782.614458 | M140: 4715.791753 | N140: 6013.536851 | O140: 4952.205946
B141: 2011-03-31 | C141: -0.004234041599 | D141: -0.004934218665 | E141: 0.01033484239 | F141: 0.007745442407 | G141: 0.005504599305 | H141: 0.001329072117 | J141: 2650.472327 | K141: 3556.72271 | L141: 3821.707182 | M141: 4752.317646 | N141: 6046.638962 | O141: 4958.787785
B142: 2011-04-30 | C142: 0.03786012956 | D142: 0.05432352767 | E142: 0.02756002915 | F142: 0.03820325615 | G142: 0.05144209268 | H142: 0.05259466668 | J142: 2750.819553 | K142: 3749.936435 | L142: 3927.033544 | M142: 4933.871654 | N142: 6357.690724 | O142: 5219.593575
B143: 2011-05-31 | C143: 0.01396666667 | D143: 0.01396666667 | E143: -0.01373457998 | F143: -0.01867739007 | G143: -0.02563503882 | H143: -0.009794356626 | J143: 2789.239333 | K143: 3802.310547 | L143: 3873.097387 | M143: 4841.719809 | N143: 6194.711075 | O143: 5168.471014
B144: 2011-06-30 | C144: -0.01537777778 | D144: -0.01743333333 | E144: -0.0226200734 | F144: -0.03000905632 | G144: -0.03938323883 | H144: -0.03060327663 | J144: 2746.34703 | K144: 3736.0236 | L144: 3785.48764 | M144: 4696.424366 | N144: 5950.74329 | O144: 5010.298866
B145: 2011-07-31 | C145: 0.05000369694 | D145: 0.05366443632 | E145: -0.001385192077 | F145: -0.01022810747 | G145: -0.02027923759 | H145: 0.009298231975 | J145: 2883.674535 | K145: 3936.5152 | L145: 3780.244013 | M145: 4648.388833 | N145: 5830.066753 | O145: 5056.885787
B146: 2011-08-31 | C146: 0.0884 | D146: 0.0884 | E146: 0.0447722884 | F146: 0.04492481728 | G146: 0.04510152976 | H146: 0.06242091785 | J146: 3138.591364 | K146: 4284.503144 | L146: 3949.494188 | M146: 4857.216852 | N146: 6093.011682 | O146: 5372.541239
B147: 2011-09-30 | C147: 0.0224 | D147: 0.006938888889 | E147: -0.01711194908 | F147: -0.01730976205 | G147: -0.01753886625 | H147: -0.007747764192 | J147: 3208.89581 | K147: 4314.232835 | L147: 3881.910644 | M147: 4773.139584 | N147: 5986.147165 | O147: 5330.916057
B148: 2011-10-31 | C148: -0.0129 | D148: -0.0049 | E148: 0.006226927772 | F148: 0.006326959823 | G148: 0.006442865879 | H148: 0.001905719527 | J148: 3167.501054 | K148: 4293.093094 | L148: 3906.083022 | M148: 4803.339047 | N148: 6024.715108 | O148: 5341.075288
B149: 2011-11-30 | C149: 0.0072 | D149: 0.01025 | E149: 0.008278377811 | F149: 0.008295965175 | G149: 0.008316339091 | H149: 0.009089803455 | J149: 3190.307062 | K149: 4337.097299 | L149: 3938.419053 | M149: 4843.18738 | N149: 6074.818682 | O149: 5389.624612
B150: 2011-12-31 | C150: 0.0199 | D150: 0.001211111111 | E150: -0.0113012033 | F150: -0.01149462778 | G150: -0.01171869011 | H150: -0.00654676962 | J150: 3253.794172 | K150: 4342.350005 | L150: 3893.910178 | M150: 4787.516744 | N150: 6003.629764 | O150: 5354.339982
B151: 2012-01-31 | C151: 0.0086 | D151: 0.006277777778 | E151: 0.0348 | F151: 0.04836666667 | G151: 0.0648 | H151: 0.04139111111 | J151: 3281.776802 | K151: 4369.610314 | L151: 4029.418252 | M151: 5019.07297 | N151: 6392.664973 | O151: 5575.962063
B152: 2012-02-29 | C152: -0.0147 | D152: -0.01716666667 | E152: 0.02106158678 | F152: 0.03593655793 | G152: 0.05370849925 | H152: 0.02535843288 | J152: 3233.534683 | K152: 4294.59867 | L152: 4114.284195 | M152: 5199.441177 | N152: 6736.005415 | O152: 5717.359722
B153: 2012-03-31 | C153: -0.007230189937 | D153: -0.007230189937 | E153: 0.01519050398 | F153: 0.0288343676 | G153: 0.03986007558 | H153: 0.02102396937 | J153: 3210.155613 | K153: 4263.547906 | L153: 4176.782245 | M153: 5349.363775 | N153: 7004.5031 | O153: 5837.561318
B154: 2012-04-30 | C154: 0.02437724729 | D154: 0.02437724729 | E154: -0.005848166206 | F154: -0.01002148084 | G154: -0.01347125516 | H154: 0.001668145819 | J154: 3288.41037 | K154: 4367.481467 | L154: 4152.355728 | M154: 5295.755229 | N154: 6910.143651 | O154: 5847.299222
B155: 2012-05-31 | C155: 0.02806232098 | D155: 0.01828696295 | E155: -0.05927834254 | F155: -0.08050494743 | G155: -0.1062106946 | H155: -0.05641163155 | J155: 3380.690798 | K155: 4447.349439 | L155: 3906.210963 | M155: 4869.420732 | N155: 6176.212495 | O155: 5517.443532
B156: 2012-06-30 | C156: -0.0042 | D156: -0.003208759943 | E156: -0.0013 | F156: -0.0013 | G156: -0.0013 | H156: -0.002063503977 | J156: 3366.491896 | K156: 4433.078963 | L156: 3901.132889 | M156: 4863.090485 | N156: 6168.183418 | O156: 5506.058266
B157: 2012-07-31 | C157: 0.01772222222 | D157: 0.01944444444 | E157: 0.0077 | F157: 0.0077 | G157: 0.0077 | H157: 0.01239777778 | J157: 3426.153614 | K157: 4519.27772 | L157: 3931.171612 | M157: 4900.536282 | N157: 6215.678431 | O157: 5574.321153
B158: 2012-08-31 | C158: -0.0012 | D158: 0.004423962958 | E158: 0.01830761139 | F158: 0.01830761139 | G158: 0.01830761139 | H158: 0.01275415202 | J158: 3422.04223 | K158: 4539.270837 | L158: 4003.141974 | M158: 4990.253396 | N158: 6329.472656 | O158: 5645.416892
B159: 2012-09-30 | C159: 6.402980995e-05 | D159: 0.001846044715 | E159: 0.02449553289 | F159: 0.02449553289 | G159: 0.02449553289 | H159: 0.01543573762 | J159: 3422.261342 | K159: 4547.650534 | L159: 4101.20107 | M159: 5112.492312 | N159: 6484.516462 | O159: 5732.558066
B160: 2012-10-31 | C160: -0.009889131759 | D160: -0.01106695811 | E160: -0.0099359778 | F160: -0.0099359778 | G160: -0.0099359778 | H160: -0.01038836992 | J160: 3388.418149 | K160: 4497.321876 | L160: 4060.451627 | M160: 5061.694702 | N160: 6420.08645 | O160: 5673.006132
B161: 2012-11-30 | C161: 0.01084444444 | D161: 0.01136666667 | E161: 0.008998536289 | F161: 0.008998536289 | G161: 0.008998536289 | H161: 0.00994578844 | J161: 3425.163661 | K161: 4548.441435 | L161: 4096.989749 | M161: 5107.242546 | N161: 6477.857831 | O161: 5729.428651
B162: 2012-12-31 | C162: -0.006766666667 | D162: -0.006766666667 | E162: 0.01876385191 | F162: 0.01876385191 | G162: 0.01876385191 | H162: 0.00855164448 | J162: 3401.986721 | K162: 4517.663648 | L162: 4173.865058 | M162: 5203.074088 | N162: 6599.407396 | O162: 5778.424688
B163: 2013-01-31 | C163: 0.02658770063 | D163: 0.04121857409 | E163: 0.03019416342 | F163: 0.03019416342 | G163: 0.03019416342 | H163: 0.03460392769 | J163: 3492.437725 | K163: 4703.875302 | L163: 4299.891421 | M163: 5360.176558 | N163: 6798.670981 | O163: 5978.380878
B164: 2013-02-28 | C164: 0.008725315902 | D164: 0.01053375454 | E164: 0.002191390291 | F164: 0.002191390291 | G164: 0.002191390291 | H164: 0.005528335989 | J164: 3522.910347 | K164: 4753.42477 | L164: 4309.314162 | M164: 5371.922797 | N164: 6813.569523 | O164: 6011.431376
B165: 2013-03-31 | C165: 0.01938772162 | D165: 0.01957251771 | E165: 0.02802936464 | F165: 0.02802936464 | G165: 0.02802936464 | H165: 0.02464662587 | J165: 3591.211553 | K165: 4846.46126 | L165: 4430.101499 | M165: 5522.494379 | N165: 7004.549548 | O165: 6159.592876
B166: 2013-04-30 | C166: 0.03968888889 | D166: 0.03652222222 | E166: 0.01228350627 | F166: 0.01228350627 | G166: 0.01228350627 | H166: 0.02197899265 | J166: 3733.742749 | K166: 5023.464795 | L166: 4484.518679 | M166: 5590.329974 | N166: 7090.589976 | O166: 6294.974523
B167: 2013-05-31 | C167: -0.04863333333 | D167: -0.04836111111 | E167: 0.006005737372 | F167: 0.006005737372 | G167: 0.006005737372 | H167: -0.01574100202 | J167: 3552.158393 | K167: 4780.524456 | L167: 4511.45152 | M167: 5623.904027 | N167: 7133.174197 | O167: 6195.885316
B168: 2013-06-30 | C168: -0.003829953983 | D168: -0.004444930975 | E168: -0.009566560686 | F168: -0.009566560686 | G168: -0.009566560686 | H168: -0.007517908802 | J168: 3538.55379 | K168: 4759.275355 | L168: 4468.292446 | M168: 5570.102608 | N168: 7064.934253 | O168: 6149.305215
B169: 2013-07-31 | C169: 0.007730210479 | D169: 0.02534063144 | E169: 0.03551874261 | F169: 0.03551874261 | G169: 0.03551874261 | H169: 0.03144749814 | J169: 3565.907556 | K169: 4879.878397 | L169: 4627.000575 | M169: 5767.945649 | N169: 7315.871835 | O169: 6342.685479
B170: 2013-08-31 | C170: -0.001 | D170: -0.004429455621 | E170: -0.02192255 | F170: -0.02192255 | G170: -0.02192255 | H170: -0.01492531225 | J170: 3562.341648 | K170: 4858.263193 | L170: 4525.564924 | M170: 5641.497572 | N170: 7155.489269 | O170: 6248.018918
B171: 2013-09-30 | C171: 0.0022 | D171: 0.0118102306 | E171: 0.02131273725 | F171: 0.02131273725 | G171: 0.02131273725 | H171: 0.01751173459 | J171: 3570.1788 | K171: 4915.640401 | L171: 4622.0171 | M171: 5761.733328 | N171: 7307.992331 | O171: 6357.432567
B172: 2013-10-31 | C172: 0.003624480519 | D172: 0.01037118326 | E172: 0.0293 | F172: 0.0293 | G172: 0.0293 | H172: 0.0217284733 | J172: 3583.118843 | K172: 4966.621409 | L172: 4757.442201 | M172: 5930.552114 | N172: 7522.116506 | O172: 6495.569871
B173: 2013-11-30 | C173: 0.009556750467 | D173: 0.0122351257 | E173: 0.0104299783 | F173: 0.0104299783 | G173: 0.0104299783 | H173: 0.01115203726 | J173: 3617.361816 | K173: 5027.388646 | L173: 4807.06222 | M173: 5992.407644 | N173: 7600.572018 | O173: 6568.008708
B174: 2013-12-31 | C174: 0.002066976065 | D174: 0.007067285463 | E174: 0.01358942389 | F174: 0.01358942389 | G174: 0.01358942389 | H174: 0.01098056852 | J174: 3624.838816 | K174: 5062.918637 | L174: 4872.387426 | M174: 6073.841012 | N174: 7703.859413 | O174: 6640.129178
B175: 2014-01-31 | C175: -0.002508123307 | D175: -0.002860691058 | E175: -0.01536666667 | F175: -0.01536666667 | G175: -0.01536666667 | H175: -0.01036427642 | J175: 3615.747273 | K175: 5048.435191 | L175: 4797.515072 | M175: 5980.506321 | N175: 7585.476774 | O175: 6571.309044
B176: 2014-02-28 | C176: 0.0191589465 | D176: 0.02701192867 | E176: 0.03534985161 | F176: 0.03534985161 | G176: 0.03534985161 | H176: 0.03201468243 | J176: 3685.021182 | K176: 5184.803162 | L176: 4967.106518 | M176: 6191.916332 | N176: 7853.622252 | O176: 6781.687416
B177: 2014-03-31 | C177: 0.002380849117 | D177: 0.007171273676 | E177: 0.006358283642 | F177: 0.006358283642 | G177: 0.006358283642 | H177: 0.006683479655 | J177: 3693.794661 | K177: 5221.984804 | L177: 4998.68879 | M177: 6231.286293 | N177: 7903.55781 | O177: 6827.012686
B178: 2014-04-30 | C178: -0.006736203898 | D178: -0.005587639181 | E178: 0.005441477487 | F178: 0.005441477487 | G178: 0.005441477487 | H178: 0.00102983082 | J178: 3668.912507 | K178: 5192.806237 | L178: 5025.889043 | M178: 6265.193697 | N178: 7946.564842 | O178: 6834.043354
B179: 2014-05-31 | C179: 0.006733446665 | D179: 0.01113348444 | E179: 0.01172447975 | F179: 0.01172447975 | G179: 0.01172447975 | H179: 0.01148808163 | J179: 3693.616934 | K179: 5250.620265 | L179: 5084.814977 | M179: 6338.649833 | N179: 8039.73418 | O179: 6912.553402
B180: 2014-06-30 | C180: 0.01500162721 | D180: 0.01844195265 | E180: 0.0227505941 | F180: 0.0227505941 | G180: 0.0227505941 | H180: 0.02102713752 | J180: 3749.027198 | K180: 5347.451955 | L180: 5200.497539 | M180: 6482.857883 | N180: 8222.642909 | O180: 7057.904613
B181: 2014-07-31 | C181: -0.001833236775 | D181: -0.001833236775 | E181: -0.02251815754 | F181: -0.02251815754 | G181: -0.02251815754 | H181: -0.01424418923 | J181: 3742.154344 | K181: 5337.64881 | L181: 5083.391916 | M181: 6336.875868 | N181: 8037.484141 | O181: 6957.370484
B182: 2014-08-31 | C182: 0.02458329312 | D182: 0.01568467195 | E182: 0.01843333333 | F182: 0.01843333333 | G182: 0.01843333333 | H182: 0.01733386878 | J182: 3834.148821 | K182: 5421.36808 | L182: 5177.095774 | M182: 6453.685613 | N182: 8185.641765 | O182: 7077.968631
B183: 2014-09-30 | C183: -0.01695984634 | D183: -0.01789147459 | E183: -0.02056666667 | F183: -0.02056666667 | G183: -0.02056666667 | H183: -0.01949658984 | J183: 3769.122246 | K183: 5324.371811 | L183: 5070.620171 | M183: 6320.954812 | N183: 8017.2904 | O183: 6939.972379
B184: 2014-10-31 | C184: 0.0138114279 | D184: 0.008584283702 | E184: 0.0151 | F184: 0.0151 | G184: 0.0151 | H184: 0.01249371348 | J184: 3821.179206 | K184: 5370.077729 | L184: 5147.186535 | M184: 6416.40123 | N184: 8138.351485 | O184: 7026.678406
B185: 2014-11-30 | C185: 0.02670086998 | D185: 0.02940115998 | E185: 0.01736666667 | F185: 0.01736666667 | G185: 0.01736666667 | H185: 0.02218046399 | J185: 3923.208015 | K185: 5527.964243 | L185: 5236.576008 | M185: 6527.832731 | N185: 8279.687522 | O185: 7182.533393
B186: 2014-12-31 | C186: 0.0013 | D186: 0.005044380878 | E186: 0.001101107434 | F186: 0.001101107434 | G186: 0.001101107434 | H186: 0.002678416812 | J186: 3928.308186 | K186: 5555.849401 | L186: 5242.342041 | M186: 6535.020576 | N186: 8288.804348 | O186: 7201.771211
B187: 2015-01-31 | C187: 0.043 | D187: 0.03240373063 | E187: -0.005515504389 | F187: -0.005515504389 | G187: -0.005515504389 | H187: 0.009652189617 | J187: 4097.225438 | K187: 5735.879648 | L187: 5213.42788 | M187: 6498.976642 | N187: 8243.087411 | O187: 7271.284073
B188: 2015-02-28 | C188: -0.02174089238 | D188: -0.01590400698 | E188: 0.02032061585 | F188: 0.02032061585 | G188: 0.02032061585 | H188: 0.005830766716 | J188: 4008.148101 | K188: 5644.656178 | L188: 5319.367945 | M188: 6631.039849 | N188: 8410.592024 | O188: 7313.681234
B189: 2015-03-31 | C189: 0.01238976817 | D189: 0.005537210218 | E189: -0.002321672314 | F189: -0.002321672314 | G189: -0.002321672314 | H189: 0.0008218806988 | J189: 4057.808126 | K189: 5675.911826 | L189: 5307.018116 | M189: 6615.644748 | N189: 8391.065385 | O189: 7319.692207
B190: 2015-04-30 | C190: -0.01228794803 | D190: -0.01667589606 | E190: -0.001796132584 | F190: -0.001796132584 | G190: -0.001796132584 | H190: -0.007748037976 | J190: 4007.945991 | K190: 5581.26091 | L190: 5297.486008 | M190: 6603.762173 | N190: 8375.993919 | O190: 7262.978954
B191: 2015-05-31 | C191: -0.001439885234 | D191: 0.00423347679 | E191: 0.0009666666667 | F191: 0.0009666666667 | G191: 0.0009666666667 | H191: 0.002273390716 | J191: 4002.175009 | K191: 5604.889049 | L191: 5302.606911 | M191: 6610.14581 | N191: 8384.090713 | O191: 7279.490543
B192: 2015-06-30 | C192: -0.007638162768 | D192: -0.01106916017 | E192: -0.01689090435 | F192: -0.01689090435 | G192: -0.01689090435 | H192: -0.01456220668 | J192: 3971.605745 | K192: 5542.847634 | L192: 5213.041085 | M192: 6498.494469 | N192: 8242.475839 | O192: 7173.485097
B193: 2015-07-31 | C193: 0.0004 | D193: 0.0012 | E193: -0.0161034463 | F193: -0.0161034463 | G193: -0.0161034463 | H193: -0.009182067779 | J193: 3973.194387 | K193: 5549.499051 | L193: 5129.093158 | M193: 6393.846312 | N193: 8109.743572 | O193: 7107.617671
B194: 2015-08-31 | C194: -0.01643939673 | D194: -0.03181212679 | E194: -0.0206 | F194: -0.0206 | G194: -0.0206 | H194: -0.02508485072 | J194: 3907.877468 | K194: 5372.957684 | L194: 5023.433839 | M194: 6262.133078 | N194: 7942.682854 | O194: 6929.324143
B195: 2015-09-30 | C195: 0.0158 | D195: 0.0121 | E195: 0.0121 | F195: 0.0121 | G195: 0.0121 | H195: 0.0121 | J195: 3969.621932 | K195: 5437.970472 | L195: 5084.217388 | M195: 6337.904888 | N195: 8038.789317 | O195: 7013.168965
B196: 2015-10-31 | C196: -0.0064 | D196: -0.0062 | E196: -0.0062 | F196: -0.0062 | G196: -0.0062 | H196: -0.0062 | J196: 3944.216352 | K196: 5404.255055 | L196: 5052.69524 | M196: 6298.609878 | N196: 7988.948823 | O196: 6969.687317
B197: 2015-11-30 | C197: -0.0043 | D197: -0.0044 | E197: -0.001366666667 | F197: -0.001366666667 | G197: -0.001366666667 | H197: -0.00258 | J197: 3927.256221 | K197: 5380.476333 | L197: 5045.78989 | M197: 6290.001778 | N197: 7978.030593 | O197: 6951.705524
B198: 2015-12-31 | C198: -0.006392069061 | D198: -0.0001809579502 | E198: -0.008 | F198: -0.008 | G198: -0.008 | H198: -0.00487238318 | J198: 3902.152928 | K198: 5379.502693 | L198: 5005.423571 | M198: 6239.681764 | N198: 7914.206348 | O198: 6917.834151
B199: 2016-01-31 | C199: 0.0333 | D199: 0.003936249082 | E199: -0.0168 | F199: -0.0168 | G199: -0.0168 | H199: -0.008505500367 | J199: =J198*(1+C199) -> 4032.094621 | K199: =K198*(1+D199) -> 5400.677755 | L199: =L198*(1+E199) -> 4921.332455 | M199: =M198*(1+F199) -> 6134.85511 | N199: =N198*(1+G199) -> 7781.247682 | O199: =O198*(1+H199) -> 6858.99451
B200: 2016-02-29 | C200: 0.0149 | D200: 0.0075 | E200: 0.02448333333 | F200: 0.02448333333 | G200: 0.02448333333 | H200: 0.01769 | J200: 4092.172831 | K200: 5441.182838 | L200: 5041.823078 | M200: 6285.056813 | N200: 7971.758562 | O200: 6980.330123
B201: 2016-03-31 | C201: -0.0006 | D201: 0.0022 | E201: 0.0004132359401 | F201: 0.0004132359401 | G201: 0.0004132359401 | H201: 0.001127941564 | J201: 4089.717527 | K201: 5453.153441 | L201: 5043.906541 | M201: 6287.654024 | N201: 7975.052779 | O201: 6988.203527
B202: 2016-04-30 | C202: 0.0009166666667 | D202: 0.008433333333 | E202: 0.01736569786 | F202: 0.01736569786 | G202: 0.01736569786 | H202: 0.01379275205 | J202: 4093.466435 | K202: 5499.141701 | L202: 5131.497498 | M202: 6396.843524 | N202: 8113.545136 | O202: 7084.590086
B203: 2016-05-31 | C203: -0.006611111111 | D203: -0.01245555556 | E203: -4.07732562e-05 | F203: -4.07732562e-05 | G203: -4.07732562e-05 | H203: -0.005006686176 | J203: 4066.404073 | K203: 5430.646836 | L203: 5131.28827 | M203: 6396.582704 | N203: 8113.214321 | O203: 7049.119767
... 72 more rows
